Cogmind - Beta 10.1 @@@ ROGUE MODE // 2021.07.08 @ 09:15:38 // Winter2019/RPGLIKE Player: Farfid Result: Destroyed 0B10! Performance ------------- Evolutions (9) 4500 Regions Visited (32) 6400 Robots Destroyed (916) 4580 Value Destroyed (52289) 52289 Prototype IDs (103) 2060 Alien Tech Used (9) 1800 Bonus (67872) 67872 TOTAL SCORE: 139501 Bonus ------- Triggered High Security 500 Triggered Max Security 2000 High Alert Combat Kills 28415 Follower Combat Kills 4391 Network Hubs Disabled 600 Met Data Miner 300 Met Warlord at Base 500 MAIN.C Attacked Warlord 500 Warlord Defense Kill 3128 Met R17 at Cetus 500 Found Hidden Lab 3000 Used Core Reset Matrix 3000 Met Warlord at Research 2000 Scanned by Researcher 1000 Pursued by Intercept 1000 Met Sigix 2000 Activated Exoskeleton 3000 Escaped with Exo-Sigix 10000 Win 3000 Friendly Fire -962 Cogmind --------- Core Integrity 1300/1300 Matter 177/350 Energy 1692/1700 System Corruption 0% Temperature Cool (8) Movement Hovering (63) Location Tau Ceti IV Orbit Parts ------- > --- POWER (2) -------- Vortex Chain Reactor > --- PROPULSION (4) --- Combat Antigrav System Combat Antigrav System Combat Antigrav System Combat Linear Gravjet > --- UTILITY (12) ----- Fusion Compressor 2N-1CE's Frost Array Experimental Energy Well Long-range Terrain Scanner Advanced Targeting Computer Advanced Core Analyzer Precision Energy Filter Quantum Capacitor Advanced Reaction Control System Experimental Focal Shield AEGIS Remote Shield > --- WEAPON (5) ------- Heavy Quantum Rifle Heavy Proton Cannon Potential Cannon Point Singularity Launcher > --- INVENTORY (6) ---- Protomatter-79 Protomatter-80 Peak State ------------ > --- POWER ------------ Vortex Chain Reactor > --- PROPULSION ------- Combat Antigrav System Combat Antigrav System Combat Antigrav System Combat Linear Gravjet > --- UTILITY ---------- Fusion Compressor 2N-1CE's Frost Array Experimental Energy Well Long-range Terrain Scanner Advanced Core Analyzer Precision Energy Filter Quantum Capacitor Advanced Reaction Control System Experimental Focal Shield AEGIS Remote Shield Advanced Dynamic Insulation System > --- WEAPON ----------- Enhanced Quantum Rifle Potential Cannon Disintegrator > --- INVENTORY -------- Protomatter Protomatter Core Regenerator Heavy Proton Cannon Sigix Containment Pod [Rating: 205] Favorites ----------- Power Vortex Chain Reactor Engine Improved Deuterium Engine Power Core Enhanced Fission Core Reactor Vortex Chain Reactor Propulsion Combat Gravmag System Wheel Wheel Hover Unit Combat Gravmag System Utility Advanced Targeting Computer Device Long-range Terrain Scanner Storage Experimental Energy Well Processor Advanced Targeting Computer Protection Hardened Medium Armor Plating Weapon Gatling Laser Energy Gun Gatling Laser Energy Cannon Potential Cannon Ballistic Cannon Hardcell Cannon Launcher Heavy Proton Missile Launcher Build | -11 -10 -10 -9 -9 -9 -8 -8 -8 -7 -7 -7 -7 -6 -6 -6 -6 -6 -6 -5 -5 -5 -5 -4 -4 -4 -4 -3 -3 -2 -2 -2 -1 ------- Run | Scr Mat Min Mat Min Exi Min Mat Sto Fac Low Low Dat Pro Fac Ext Cet Arc Hub Fac Upp Upp War Pro Fac Arm Lab Res Qua Res Tes Sec Acc Slots Evolved 19 | 2 . . 2 2 . . . 1 4 . . . . 3 . . . 2 1 . . . . 1 . . . . 1 . . . Power 1 | . . . . . . . . . 1 . . . . . . . . . . . . . . . . . . . . . . . Propulsion 3 | 1 . . . 1 . . . . . . . . . 1 . . . . . . . . . . . . . . . . . . Utility 11 | . . . 1 1 . . . . 3 . . . . 2 . . . 2 . . . . . 1 . . . . 1 . . . Weapon 4 | 1 . . 1 . . . . 1 . . . . . . . . . . 1 . . . . . . . . . . . . . Parts Attached 282 | 5 3 3 6 4 . 1 2 8 11 1 2 . 4 9 2 4 . 2 22 1 4 11 . 10 7 10 28 16 46 13 32 15 Power 13 | 1 1 1 1 . . . . . 3 . . . . 1 1 2 . . 1 . . 1 . . . . . . . . . . Engine 6 | 1 1 . 1 . . . . . 3 . . . . . . . . . . . . . . . . . . . . . . . Core 2 | . . 1 . . . . . . . . . . . . . . . . 1 . . . . . . . . . . . . . Reactor 5 | . . . . . . . . . . . . . . 1 1 2 . . . . . 1 . . . . . . . . . . Propulsion 23 | 2 1 . . 3 . . . . . . . . . 4 . . . . . . . . . . . . 5 . 7 . . 1 Treads . | . . . . . . . . . . . . . . . . . . . . . . . . . . . . . . . . . Leg . | . . . . . . . . . . . . . . . . . . . . . . . . . . . . . . . . . Wheel 3 | 2 1 . . . . . . . . . . . . . . . . . . . . . . . . . . . . . . . Hover 20 | . . . . 3 . . . . . . . . . 4 . . . . . . . . . . . . 5 . 7 . . 1 Flight . | . . . . . . . . . . . . . . . . . . . . . . . . . . . . . . . . . Utility 146 | . 1 . 2 1 . 1 1 . 5 . 2 . 3 4 1 1 . 2 16 1 3 10 . 9 . 4 12 9 29 7 19 3 Device 115 | . 1 . 1 . . . . . 4 . 1 . 1 2 1 . . 2 10 1 2 8 . 8 . 4 12 7 28 6 14 2 Storage 5 | . . . . . . . . . . . . . . . . . . . 1 . . 1 . . . . . 1 . 1 1 . Processor 14 | . . . 1 . . 1 . . . . 1 . . 1 . . . . 3 . . 1 . . . . . 1 1 . 3 1 Hackware . | . . . . . . . . . . . . . . . . . . . . . . . . . . . . . . . . . Protection 12 | . . . . 1 . . 1 . 1 . . . 2 1 . 1 . . 2 . 1 . . 1 . . . . . . 1 . Artifact . | . . . . . . . . . . . . . . . . . . . . . . . . . . . . . . . . . Weapon 100 | 2 . 2 3 . . . 1 8 3 1 . . 1 . . 1 . . 5 . 1 . . 1 7 6 11 7 10 6 13 11 Energy Gun 63 | 2 . 1 3 . . . 1 8 3 1 . . 1 . . 1 . . 4 . 1 . . 1 3 2 5 1 7 4 7 7 Energy Cannon 31 | . . 1 . . . . . . . . . . . . . . . . . . . . . . 3 4 6 6 3 1 4 3 Ballistic Gun . | . . . . . . . . . . . . . . . . . . . . . . . . . . . . . . . . . Ballistic Cannon 3 | . . . . . . . . . . . . . . . . . . . . . . . . . . . . . . 1 2 . Launcher 3 | . . . . . . . . . . . . . . . . . . . 1 . . . . . 1 . . . . . . 1 Special Weapon . | . . . . . . . . . . . . . . . . . . . . . . . . . . . . . . . . . Impact Weapon . | . . . . . . . . . . . . . . . . . . . . . . . . . . . . . . . . . Slashing Weapon . | . . . . . . . . . . . . . . . . . . . . . . . . . . . . . . . . . Piercing Weapon . | . . . . . . . . . . . . . . . . . . . . . . . . . . . . . . . . . Special Melee Weapon . | . . . . . . . . . . . . . . . . . . . . . . . . . . . . . . . . . Unidentified Prototypes 57 | . . . 2 . . . 1 3 1 . . . . 1 . 2 . . 6 . 1 5 . 3 1 5 2 4 6 6 5 3 Parts Lost . | . . . . . . . . . . . . . . . . . . . . . . . . . . . . . . . . . Power . | . . . . . . . . . . . . . . . . . . . . . . . . . . . . . . . . . Propulsion . | . . . . . . . . . . . . . . . . . . . . . . . . . . . . . . . . . Utility . | . . . . . . . . . . . . . . . . . . . . . . . . . . . . . . . . . Weapon . | . . . . . . . . . . . . . . . . . . . . . . . . . . . . . . . . . Highest Loss Streak . | . . . . . . . . . . . . . . . . . . . . . . . . . . . . . . . . . Average Slot Usage (%) 94 | . 84 99 99 100 100 100 100 99 100 100 99 100 99 100 99 100 100 99 99 100 99 97 95 94 94 91 88 80 84 85 81 85 Engine 3 | . 16 11 1 10 10 10 10 9 12 13 13 13 13 8 3 . . . . . . . . . . . . . . . . . Reactor 3 | . . . . . . . . . . . . . . 2 6 11 11 10 8 4 4 4 4 4 4 4 4 4 4 4 4 4 Wheel 1 | . 33 33 28 4 . . . . . . . . . . . . . . . . . . . . . . . . . . . . Hover 18 | . . . . 24 30 30 30 29 20 20 20 20 20 19 22 22 22 20 19 19 19 19 19 18 18 18 18 18 17 17 17 17 Device 31 | . 1 16 14 10 10 10 10 9 24 26 25 26 27 30 33 33 33 37 34 33 33 32 33 35 36 37 39 36 40 41 36 34 Processor 6 | . . . 10 10 10 10 10 9 6 6 6 6 6 5 5 5 5 5 8 9 9 9 9 9 9 9 8 8 4 4 4 7 Protection 3 | . . . . 7 10 10 10 9 6 6 6 6 5 5 5 5 5 5 4 4 4 4 4 4 4 1 . . . . . . Energy Gun 17 | . 33 29 17 31 30 30 30 31 27 26 26 26 25 24 22 22 22 20 19 19 18 19 19 17 15 13 12 3 4 3 4 7 Energy Cannon 3 | . . 3 12 . . . . . . . . . . . . . . . . . . . . . 2 3 4 9 12 12 8 8 Launcher 1 | . . . . . . . . . . . . . . . . . . . 2 4 4 4 4 4 3 2 . . . . . . Naked Turns . | . . . . . . . . . . . . . . . . . . . . . . . . . . . . . . . . . Heaviest Build 133 | 7 10 17 20 21 21 21 26 29 47 49 49 49 51 61 63 71 67 70 85 81 87 99 88 101 108 117 114 117 128 132 133 127 Greatest Support 137 | 31 31 25 25 71 71 71 71 71 71 71 71 71 71 105 105 105 105 105 105 105 105 105 105 117 110 110 115 115 137 137 137 137 Greatest Overweight (x) 2 | . . . . . . . . . . . . . . . . . . . . . . . . . . 1 1 1 1 . 2 . Average Overweight (x) . | . . . . . . . . . . . . . . . . . . . . . . . . . . . . . . . . . Largest Inventory Capacity 6 | 1 1 1 1 1 2 2 3 3 3 3 3 3 4 4 4 4 4 4 5 5 5 5 5 5 5 5 5 6 6 6 6 6 Average Capacity 4 | 1 1 1 1 1 1 2 2 3 3 3 3 3 3 4 4 4 4 4 4 5 5 5 5 5 5 5 5 5 6 6 6 6 Most Carried 6 | . 1 1 1 1 2 2 3 3 3 3 3 2 4 4 4 4 4 4 5 5 5 5 5 5 5 5 5 6 6 6 6 6 Average Carried 4 | . . . . 1 1 2 2 3 2 2 2 2 3 4 4 4 4 3 3 5 5 4 5 4 5 4 4 5 5 6 4 5 Final Capacity 6 | 1 1 1 1 1 2 2 3 3 3 3 3 3 4 4 4 4 4 4 5 5 5 5 5 5 5 5 5 6 6 6 6 6 Final Carried 6 | . . 1 1 1 2 2 3 3 3 3 2 2 4 4 4 4 4 3 5 5 5 5 5 5 5 5 4 6 6 6 6 2 Class Distribution -------------------- 18% | Scavenger-Scout 15% | Scavenger-Gunner 12% | Alien-Scout 12% | Machinist-Scout 10% | Hacker-Scout 9% | Gunner 9% | Scavenger-Tank 5% | Mutant Dominant Class ---------------- Mutant | -10/Materials Mutant | -10/Mines Mutant | -9/Materials Scavenger-Gunner | -9/Mines Scavenger-Mutant | -9/Exiles Scavenger-Gunner | -8/Mines Gunner | -8/Materials Gunner | -8/Storage Gunner | -7/Factory Scavenger-Gunner | -7/Lower Caves Scavenger-Gunner | -7/Lower Caves Scavenger-Gunner | -7/Data Miner Scavenger-Gunner | -6/Proximity Caves Scavenger-Tank | -6/Factory Commander-Tank | -6/Extension Scavenger-Tank | -6/Cetus Scavenger-Tank | -6/Archives Scavenger-Mutant | -6/Hub_04(d) Scavenger-Scout | -5/Factory Scavenger-Scout | -5/Upper Caves Scavenger-Scout | -5/Upper Caves Scavenger-Scout | -5/Warlord Machinist-Scout | -4/Proximity Caves Machinist-Scout | -4/Factory Hacker-Scout | -4/Armory Hacker-Scout | -4/Lab Hacker-Scout | -3/Research Machinist-Scout | -3/Quarantine Scavenger-Scout | -2/Research Scavenger-Scout | -2/Testing Alien-Scout | -2/Section 7 Alien-Scout | -1/Access Resources | -11 -10 -10 -9 -9 -9 -8 -8 -8 -7 -7 -7 -7 -6 -6 -6 -6 -6 -6 -5 -5 -5 -5 -4 -4 -4 -4 -3 -3 -2 -2 -2 -1 ----------- Run | Scr Mat Min Mat Min Exi Min Mat Sto Fac Low Low Dat Pro Fac Ext Cet Arc Hub Fac Upp Upp War Pro Fac Arm Lab Res Qua Res Tes Sec Acc Matter Collected 6131 | 250 10 50 60 40 . 10 10 90 100 20 20 . 40 90 20 40 . 20 239 38 67 228 84 107 90 . 819 638 1499 269 734 449 Remotely . | . . . . . . . . . . . . . . . . . . . . . . . . . . . . . . . . . Salvage Created 47772 | . 294 283 321 390 . 75 595 830 1335 226 1053 . 232 589 1190 308 193 841 5685 1117 1324 1624 929 2952 1947 . 3328 741 2866 1493 6173 8838 Parts 1802 | . 16 6 13 21 . 8 40 44 57 8 38 . 13 34 32 6 5 25 192 32 46 52 40 94 67 . 140 80 106 48 267 272 Haulers Intercepted 47 | . 1 . 1 . . . 1 3 5 . . . . . 2 . . 2 6 . 1 . . 10 . . 2 1 4 1 . 7 Recyclers Shooed 10 | . . 1 . . . . . . . . . . . 2 . . . . 2 . . . . 1 . . 1 . . . 1 2 Parts Field Recycled . | . . . . . . . . . . . . . . . . . . . . . . . . . . . . . . . . . Retrieved Matter . | . . . . . . . . . . . . . . . . . . . . . . . . . . . . . . . . . Parts Self-Destructed 182 | . . . . . . . . . . 8 36 . 12 . . . . . . 34 42 18 32 . . . . . . . . . Prevented 58 | . . . . . . . . . . . . . . . . . . . . . 5 48 5 . . . . . . . . . Kills | -11 -10 -10 -9 -9 -9 -8 -8 -8 -7 -7 -7 -7 -6 -6 -6 -6 -6 -6 -5 -5 -5 -5 -4 -4 -4 -4 -3 -3 -2 -2 -2 -1 ------- Run | Scr Mat Min Mat Min Exi Min Mat Sto Fac Low Low Dat Pro Fac Ext Cet Arc Hub Fac Upp Upp War Pro Fac Arm Lab Res Qua Res Tes Sec Acc Combat Hostiles Destroyed 762 | . 10 8 6 4 . 4 16 12 21 3 23 . 6 21 17 4 4 13 73 17 24 26 19 33 25 . 48 16 45 13 101 150 Guns 378 | . 10 6 2 4 . 4 13 12 19 3 20 . 4 18 11 4 3 7 64 12 17 7 12 24 16 . 26 1 . 1 37 21 Cannons 111 | . . 1 4 . . . . . . . . . . . . . . . . . . . . . 1 . 2 10 29 7 14 43 AOE 140 | . . . . . . . 2 . . . . . . . . . . 3 . . 5 8 4 1 1 . 8 . 2 2 32 72 Classes Destroyed 27 | . 3 . 1 4 . 1 4 1 2 1 . . 1 . . . . . . 1 . 2 . . 1 . . 1 2 . 2 . Worker 24 | . . . . 1 . . 1 . 2 . . . . 1 . . . 5 1 . . . . 2 . . 2 . . 2 . 7 Builder 13 | . . . 1 . . . . . 1 . . . . . . . . . 5 . . . . 1 . . 2 . . 1 . 2 Tunneler 4 | . . . . 1 . . 1 . 1 . . . . . 1 . . . . . . . . . . . . . . . . . Hauler 47 | . 1 . 1 . . . 1 3 5 . . . . . 2 . . 2 6 . 1 . . 10 . . 2 1 4 1 . 7 Recycler 14 | . . . . 3 . . . . 3 . . . . 2 1 . . . 3 . . . . . . . . . . . 1 1 Minesweeper 1 | . . . . . . . . . . 1 . . . . . . . . . . . . . . . . . . . . . . Mechanic 15 | . . . . . . . 1 . 1 . . . . . . . . . . . 1 . . . . . . . . . 2 10 Operator 7 | . . . . . . . 1 . . . . . . . . . . 1 1 . . . . . 1 . . 2 . . 1 . Watcher 21 | . . . . . . . . 1 . . . . . 1 2 . . 1 2 . . . . 1 1 . 1 1 1 2 2 5 Swarmer 131 | . 3 . . 3 . . 3 . 9 . 5 . . 9 . . . 3 9 1 11 . 7 13 1 . 13 2 17 . 9 13 Saboteur 9 | . . . . . . . . . . . . . . . . . . . . . . . . . 1 . . . . . 6 2 Grunt 281 | . 7 8 6 . . 3 11 6 4 2 11 . 1 9 5 . . 1 42 6 9 14 6 7 5 . 11 3 8 10 34 52 Brawler 28 | . . . . . . . . . 1 1 2 . . 1 . . . . 1 4 . 2 . . 1 . . . . . 5 10 Duelist 31 | . . . . . . . 1 1 1 . 5 . 1 . . . . . . 1 2 . 1 . 3 . . 1 . 1 2 11 Protector 11 | . . . . . . . . . . . . . . . . . . . . . . 2 . . 1 . . . . . 5 3 Researcher 4 | . . . . . . . . . . . . . . . . . . . . . . . . . . . . 1 . 1 2 . Sentry 89 | . . . . . . . 1 5 4 . 1 . 1 2 8 . 4 6 10 2 2 . 1 6 3 . 10 . 4 . 2 17 Demolisher 8 | . . . . 1 . . . . . . . . . . . . . . . . . 3 . . 1 . . . 3 . . . Specialist 5 | . . . . . . . . . . . . . . . . . . . . . . 1 . . 4 . . . . . . . Hunter 51 | . . . . . . 1 . . . . . . 2 . 1 1 . 2 7 . . 2 4 2 2 . 2 2 3 2 7 11 Programmer 57 | . . . . . . . . . 2 . . . . . 1 . . 1 4 1 . 2 . 4 3 . 11 5 2 . 8 13 Q-Series 2 | . . . . . . . . . . . . . . . . . . . . . . . . . . . . . . . 2 . Behemoth 12 | . . . . . . . . . . . . . 1 . 2 . . . . 1 . . . 1 . . 1 . . . 1 5 Cetus Guard 3 | . . . . . . . . . . . . . . . . 3 . . . . . . . . . . . . . . . . Quarantine Guard 3 | . . . . . . . . . . . . . . . . . . . . . . . . . . . . 3 . . . . S7 Guard 2 | . . . . . . . . . . . . . . . . . . . . . . . . . . . . . . . 2 . Tracker 6 | . . . . . . . . . . . . . . . . . . . . . . . . . . . . . . . 4 2 Combat Programmer 6 | . . . . . . . . . . . . . . . . . . . . . . . . . . . . . . . 4 2 Investigator 2 | . . . . . . . . . . . . . . . . . . . . . . . . . . . . . . . 1 1 Striker 11 | . . . . . . . . . . . . . . . . . . . . . . . . . . . . . 5 . 3 3 Executioner 14 | . . . . . . . . . . . . . . . . . . . . . . . . . . . . . 3 . 5 6 Alpha 7 2 | . . . . . . . . . . . . . . . . . . . . . . . . . . . . . . . 2 . Savage 1 | . . . . . . . . . . . . . . . . . . . . . . . . . . . . . . 1 . . Mutant 1 | . . . . . . . . . . . . . . . . . . . . 1 . . . . . . . . . . . . Best Kill Streak 54 | . 5 2 4 4 . 2 11 5 8 2 9 . 2 5 6 2 4 8 10 7 7 14 7 7 4 . 15 4 10 6 29 54 Combat Bots Only 48 | . 5 2 3 3 . 2 9 5 3 2 9 . 2 4 5 2 4 3 8 7 7 14 7 6 4 . 11 4 10 4 28 48 Max Kills in Single Turn 7 | . 1 1 1 2 . 1 2 1 3 2 2 . 1 2 2 1 1 7 3 2 3 3 3 2 1 . 4 1 1 3 5 5 Gunslinging 1 | . . . . . . . . . 1 1 . . . . 1 . . . 1 1 1 . 1 1 . . . . . . . . Exploded 4 | . . . . . . . 2 . . . . . . . . . . 3 . . 3 3 3 1 1 . 3 . 1 2 4 4 Melee . | . . . . . . . . . . . . . . . . . . . . . . . . . . . . . . . . . Uniques/NPCs Destroyed 1 | . . . . . . . . . . . . . . . . 1 . . . . . . . . . . . . . . . . A7 (-6/Cetus) Combat | -11 -10 -10 -9 -9 -9 -8 -8 -8 -7 -7 -7 -7 -6 -6 -6 -6 -6 -6 -5 -5 -5 -5 -4 -4 -4 -4 -3 -3 -2 -2 -2 -1 -------- Run | Scr Mat Min Mat Min Exi Min Mat Sto Fac Low Low Dat Pro Fac Ext Cet Arc Hub Fac Upp Upp War Pro Fac Arm Lab Res Qua Res Tes Sec Acc Damage Taken 19302 | . 463 440 109 93 . 164 367 408 914 25 625 . 40 943 574 154 145 817 2089 353 407 369 548 1055 970 . 1209 525 1279 232 2822 1163 Core 14297 | . 400 355 83 74 . 118 275 255 676 19 428 . 29 693 421 99 83 567 1524 251 276 230 368 696 723 . 940 399 1031 183 2197 904 Absorbed by Shields 7491 | . . . . . . . . . . . . . . . . 21 . . . . . 87 . 272 286 . 1155 501 1164 228 2670 1107 Redirected to Core 12402 | . 228 287 83 52 . 101 200 230 608 19 373 . 29 576 298 99 83 524 1315 227 234 220 354 634 594 . 858 388 816 166 1986 820 Core Remaining (%) 92 | 100 . 100 . . . 91 . 92 . . . . 100 . . . . 64 . . . . 100 . . 82 . 100 . . 86 100 Volleys Fired 1893 | . 27 39 11 11 . 10 44 43 61 8 29 . 10 32 34 6 7 36 135 24 25 31 26 82 73 5 90 83 179 71 403 258 Largest 5 | . 2 2 2 3 . 3 3 4 4 4 4 . 4 4 4 4 4 4 4 4 4 4 4 5 4 1 3 1 1 1 1 2 Hottest 374 | . 100 150 150 168 . 168 168 238 253 291 291 . 310 310 310 320 320 320 320 264 334 334 334 374 338 100 241 100 200 100 200 200 Shots Fired 3836 | . 54 78 22 33 . 30 132 111 240 32 116 . 40 128 136 23 27 93 484 93 92 58 95 260 213 5 251 80 179 70 402 259 Gun 3089 | . 54 70 11 33 . 30 132 111 240 32 116 . 40 128 136 23 27 93 484 93 90 40 92 259 174 . 243 6 4 18 222 88 Cannon 717 | . . 8 11 . . . . . . . . . . . . . . . . . . . . . 38 5 8 74 175 52 180 166 Launcher 30 | . . . . . . . . . . . . . . . . . . . . . 2 18 3 1 1 . . . . . . 5 Special . | . . . . . . . . . . . . . . . . . . . . . . . . . . . . . . . . . Kinetic 12 | . . . . . . . . . . . . . . . . . . . . . . . . . . . . . . 3 9 . Thermal 3314 | . 54 78 22 33 . 30 132 111 240 32 116 . 40 128 136 23 27 93 484 93 90 40 92 259 212 5 251 63 80 37 133 180 Explosive 5 | . . . . . . . . . . . . . . . . . . . . . . . . . . . . . . . . 5 Electromagnetic 338 | . . . . . . . . . . . . . . . . . . . . . 2 18 3 1 1 . . 17 99 30 105 62 Slashing 167 | . . . . . . . . . . . . . . . . . . . . . . . . . . . . . . . 155 12 Robot Hit Streak 105 | . 8 31 44 6 . 14 15 35 60 9 23 . 27 47 55 47 25 81 55 40 53 47 47 63 105 . 92 47 50 20 32 81 Robot Miss Streak 4 | . 2 3 1 2 . 1 3 2 2 2 1 . 2 2 2 4 1 2 2 1 1 2 3 4 3 . 3 1 3 2 2 3 Penetration Max 2 | . . . . . . . . . . . . . . . . . . . . . . . . . . . . . . . 2 1 Secondary Targets 52 | . 1 . . 1 . . 4 1 4 1 5 . . 6 2 1 . . 7 3 3 . 2 4 3 . 4 . . . . . Max Gunslinging Chain 2 | . 1 . . 1 . . 1 1 1 1 1 . . 1 1 1 . . 1 1 1 . 2 2 1 . 1 . . . . . Capacitor 973 | . . . . . . . . . . . . . . . . . . . . . . . . . . . 2 80 179 67 393 252 Shots Hit Robots 3059 | . 36 63 18 15 . 23 91 74 164 23 91 . 35 108 121 21 25 62 412 85 73 46 81 206 165 . 230 55 141 41 329 225 Core Hits 2062 | . 20 18 9 9 . 9 33 30 58 11 43 . 20 75 78 15 19 42 295 61 68 57 63 140 114 . 188 32 68 36 219 232 Critical Hits 130 | . . . . . . . . . . . . . . . . . . . . . . . . . 1 . 7 7 18 4 61 32 Critical Kills 30 | . . . . . . . . . . . . . . . . . . . . . . . . . . . 2 3 5 2 7 11 Critical Parts Destroyed 69 | . . . . . . . . . . . . . . . . . . . . . . . . . . . 3 4 10 1 35 16 Melee Attacks . | . . . . . . . . . . . . . . . . . . . . . . . . . . . . . . . . . Impact . | . . . . . . . . . . . . . . . . . . . . . . . . . . . . . . . . . Slashing . | . . . . . . . . . . . . . . . . . . . . . . . . . . . . . . . . . Piercing . | . . . . . . . . . . . . . . . . . . . . . . . . . . . . . . . . . Sneak Attacks . | . . . . . . . . . . . . . . . . . . . . . . . . . . . . . . . . . Combat Hostiles . | . . . . . . . . . . . . . . . . . . . . . . . . . . . . . . . . . Follow-up Attacks . | . . . . . . . . . . . . . . . . . . . . . . . . . . . . . . . . . Damage Inflicted 144599 | . 425 929 411 302 . 401 2110 1235 3026 357 1923 . 856 2482 2962 441 651 2476 10252 2049 2007 3688 2158 5456 4343 . 8208 2697 7371 2551 24403 48429 Guns 62551 | . 425 754 211 302 . 401 1551 1235 3026 357 1923 . 856 2482 2962 441 651 1571 10040 2049 1685 696 1856 5409 3622 . 5778 180 100 259 8195 3534 Cannons 37024 | . . 175 200 . . . . . . . . . . . . . . . . . . . . . 658 . 301 2517 6314 1717 6578 18564 Explosions 44968 | . . . . . . . 559 . . . . . . . . . . 905 212 . 322 2992 302 47 63 . 2129 . 957 575 9574 26331 Melee . | . . . . . . . . . . . . . . . . . . . . . . . . . . . . . . . . . Ramming 56 | . . . . . . . . . . . . . . . . . . . . . . . . . . . . . . . 56 . Kinetic . | . . . . . . . . . . . . . . . . . . . . . . . . . . . . . . . . . Thermal 121043 | . 425 929 411 302 . 401 1551 1235 3026 357 1923 . 856 2482 2962 441 651 1571 10252 2049 1831 1340 1939 5409 4280 . 7197 2067 4208 1618 15603 43727 Explosive 3516 | . . . . . . . 559 . . . . . . . . . . . . . . . . . . . 1011 . . . . 1946 Electromagnetic 13312 | . . . . . . . . . . . . . . . . . . 905 . . 176 2348 219 47 63 . . 630 3163 933 2575 2253 Impact . | . . . . . . . . . . . . . . . . . . . . . . . . . . . . . . . . . Slashing 6672 | . . . . . . . . . . . . . . . . . . . . . . . . . . . . . . . 6169 503 Piercing . | . . . . . . . . . . . . . . . . . . . . . . . . . . . . . . . . . Highest Corruption 11 | . . . . . . . . . 2 2 2 2 2 . . . . 5 3 3 3 5 1 2 3 3 4 11 1 1 1 . Average Corruption 2 | . . . . . . . . . 2 2 2 2 2 . . . . 3 2 3 3 1 1 1 2 3 2 8 1 1 1 . Corruption Purged . | . . . . . . . . . . . . . . . . . . . . . . . . . . . . . . . . . Effects 198 | . . . . . . . . . 18 5 15 . 11 . . . . 2 12 12 19 2 6 6 16 1 11 47 2 3 10 . Message Errors 33 | . . . . . . . . . 4 2 1 . 3 . . . . . 5 2 3 1 1 1 3 . 2 5 . . . . Matter Fused 20 | . . . . . . . . . . . . . . . . . . . 2 4 3 . . . 2 . . 9 . . . . Heat Flow Errors 14 | . . . . . . . . . 1 . 1 . 1 . . . . . 1 1 3 . . . 3 1 . 2 . . . . Energy Discharges 24 | . . . . . . . . . 3 1 3 . 4 . . . . 2 . 2 . . . 1 1 . 2 1 1 2 1 . Data Loss (minor) 30 | . . . . . . . . . 3 2 3 . 2 . . . . . . 1 6 . 4 2 2 . . 2 1 . 2 . Misfires 1 | . . . . . . . . . . . . . . . . . . . . . . . . . . . . 1 . . . . Alerts 2 | . . . . . . . . . . . . . . . . . . . . . . . . . . . . 2 . . . . Misdirections 10 | . . . . . . . . . . . . . . . . . . . . . . . . . . . . 10 . . . . Targeting Errors 53 | . . . . . . . . . 6 . 7 . 1 . . . . . 4 2 2 1 1 2 5 . 4 11 . 1 6 . Weapon Failures 11 | . . . . . . . . . 1 . . . . . . . . . . . 2 . . . . . 3 4 . . 1 . Overload Shots 6 | . . . . . . . . . . . . . . . . . . 3 3 . . . . . . . . . . . . . Overflow Damage 7288 | . . 6 . . . . 21 . . . . . . . . . . 28 53 . 4 89 . . . . 202 112 215 85 1622 4851 Projectiles 2692 | . . 6 . . . . . . . . . . . . . . . . . . . . . . . . . 112 149 46 519 1860 Explosions 4596 | . . . . . . . 21 . . . . . . . . . . 28 53 . 4 89 . . . . 202 . 66 39 1103 2991 Melee . | . . . . . . . . . . . . . . . . . . . . . . . . . . . . . . . . . Knockbacks 2 | . . . . . . . . . . . . . . . . . . . . . . . . . . . . . . . 2 . Impact 1 | . . . . . . . . . . . . . . . . . . . . . . . . . . . . . . . 1 . Kinetic . | . . . . . . . . . . . . . . . . . . . . . . . . . . . . . . . . . Secondary 1 | . . . . . . . . . . . . . . . . . . . . . . . . . . . . . . . 1 . Self-Inflicted Damage 489 | . . . . . . . . . . . . . . . . . . 200 19 . . . . 10 . . . . 152 80 28 . Shots 7 | . . . . . . . . . . . . . . . . . . 2 1 . . . . 1 . . . . 2 1 . . Rammed 1 | . . . . . . . . . . . . . . . . . . . . . . . . . . . . . . . 1 . Targets Rammed 1 | . . . . . . . . . . . . . . . . . . . . . . . . . . . . . . . 1 . Kicked . | . . . . . . . . . . . . . . . . . . . . . . . . . . . . . . . . . Crushed . | . . . . . . . . . . . . . . . . . . . . . . . . . . . . . . . . . Highest Temperature 345 | . 44 14 162 184 . 192 196 199 319 198 287 . 193 197 218 197 194 196 345 198 324 198 183 66 95 27 65 125 88 . 7 138 Average Temperature 94 | . 22 7 52 60 . 89 100 90 112 89 112 . 102 120 119 104 107 101 109 72 87 76 50 20 94 27 61 32 88 . 4 38 Received Heat Transfer 3251 | . 168 294 42 . . 63 180 171 108 18 108 . 9 252 222 31 36 12 429 81 99 60 60 159 147 . 108 58 36 16 196 88 Effects 2 | . . . . . . . . . 2 . . . . . . . . . . . . . . . . . . . . . . . Interference 2 | . . . . . . . . . 2 . . . . . . . . . . . . . . . . . . . . . . . Siege Activations . | . . . . . . . . . . . . . . . . . . . . . . . . . . . . . . . . . Robots Corrupted 55 | . . . . . . . . . . . . . . . . . . 2 . . . 11 . . . . . 4 17 3 10 8 Combat Hostiles 48 | . . . . . . . . . . . . . . . . . . . . . . 11 . . . . . 4 14 3 10 6 Parts Fried 111 | . . . . . . . . . . . . . . . . 1 . 7 . . . 23 . . . . . 7 28 7 24 14 Impact Corruptions . | . . . . . . . . . . . . . . . . . . . . . . . . . . . . . . . . . Robots Melted 105 | . . 1 . . . . 1 . 2 . 3 . 2 3 6 . 1 4 13 5 2 . 3 11 7 . 12 3 . . 8 18 Combat Hostiles 85 | . . 1 . . . . 1 . 2 . 3 . 2 3 6 . 1 3 9 5 2 . 3 8 7 . 12 1 . . 8 8 Parts Melted 664 | . 4 4 2 1 . 1 9 3 19 . 17 . 8 13 24 4 1 10 131 37 23 7 28 73 55 . 134 7 7 2 11 29 Heat Transferred 153364 | . 1258 2294 666 666 . 888 3367 2627 5846 682 3841 . 1757 5073 6023 873 1297 3066 20297 4425 3697 1908 3777 10672 7945 . 13530 1443 2970 1078 12697 28701 Parts Sabotaged . | . . . . . . . . . . . . . . . . . . . . . . . . . . . . . . . . . Parts Stolen . | . . . . . . . . . . . . . . . . . . . . . . . . . . . . . . . . . Parts Stripped . | . . . . . . . . . . . . . . . . . . . . . . . . . . . . . . . . . Power Chain Reactions 15 | . . . . . . . . . . . . . . . . . . . . . 1 5 1 . . . . . 3 3 1 1 Missiles Intercepted . | . . . . . . . . . . . . . . . . . . . . . . . . . . . . . . . . . Alert | -11 -10 -10 -9 -9 -9 -8 -8 -8 -7 -7 -7 -7 -6 -6 -6 -6 -6 -6 -5 -5 -5 -5 -4 -4 -4 -4 -3 -3 -2 -2 -2 -1 ------- Run | Scr Mat Min Mat Min Exi Min Mat Sto Fac Low Low Dat Pro Fac Ext Cet Arc Hub Fac Upp Upp War Pro Fac Arm Lab Res Qua Res Tes Sec Acc Peak Influence 10100 | . 257 172 199 202 . 115 583 574 761 . . . . 431 540 625 368 1271 2848 . . . . 464 943 . 1410 976 1488 1022 4476 10100 Initial 2685 | . . 22 19 77 . . 44 245 115 . . . . 23 148 154 228 128 622 . . . . 138 135 . . 792 549 829 441 2685 Average 1369 | . 92 96 92 137 . 47 299 417 448 . . . . 210 238 403 316 528 1595 . . . . 255 597 . 604 668 912 780 1382 8039 Maximum Alert Level 5 | . 1 . . 1 . . 2 2 3 . . . . 2 2 2 1 4 5 . . . . 2 3 . 4 3 4 3 5 5 Low Security (%) 20 | 100 70 100 100 91 . 100 40 . 12 . . . . 41 40 10 . 10 . . . . . 24 14 . 30 . . . . . Level 1 20 | . 29 . . 8 . . 24 33 39 . . . . 55 56 39 100 23 . . . . . 70 6 . 20 17 . . . . Level 2 19 | . . . . . . . 34 66 36 . . . . 3 3 49 . 50 10 . . . . 4 40 . 7 34 38 25 21 . Level 3 17 | . . . . . . . . . 11 . . . . . . . . 6 14 . . . . . 38 . 9 48 37 74 50 . Level 4 7 | . . . . . . . . . . . . . . . . . . 8 26 . . . . . . . 32 . 24 . . . Level 5 4 | . . . . . . . . . . . . . . . . . . . 39 . . . . . . . . . . . . . High Security . | . . . . . . . . . . . . . . . . . . . 7 . . . . . . . . . . . . . Max Security 11 | . . . . . . . . . . . . . . . . . . . . . . . . . . . . . . . 27 99 Sterilizations 1 | . . . . . . . . . . . . . . . . . . . . . . . . . . . . . . . . 1 Squads Dispatched 159 | . 5 . 1 . . 1 1 . 11 . 1 . . 5 5 1 . 7 22 . 1 . . 6 5 . 9 10 2 6 33 27 Investigation 21 | . 2 . 1 . . 1 . . 4 . . . . 3 3 1 . . 4 . . . . . . . . . . 2 . . Extermination 14 | . . . . . . . . . 3 . . . . . . . . 1 1 . . . . 1 1 . 3 1 . 1 2 . Reinforcement 40 | . 3 . . . . . 1 . 3 . . . . 1 2 . . 2 4 . . . . 5 1 . 3 4 2 2 4 3 Assault 63 | . . . . . . . . . . . 1 . . 1 . . . 1 11 . 1 . . . 3 . . 2 . 1 21 21 Garrison 12 | . . . . . . . . . 1 . . . . . . . . 3 2 . . . . . . . 3 3 . . . . Intercept 9 | . . . . . . . . . . . . . . . . . . . . . . . . . . . . . . . 6 3 Construction Impeded 3 | . . . . . . . . . . . . . . . 1 . . . . . . . . . . . 1 . . . . 1 Haulers Reinforced 13 | . . . . . . . . . 1 . . . . 1 . . . . 2 . . . . 3 . . 2 . 2 . . 2 Stealth | -11 -10 -10 -9 -9 -9 -8 -8 -8 -7 -7 -7 -7 -6 -6 -6 -6 -6 -6 -5 -5 -5 -5 -4 -4 -4 -4 -3 -3 -2 -2 -2 -1 --------- Run | Scr Mat Min Mat Min Exi Min Mat Sto Fac Low Low Dat Pro Fac Ext Cet Arc Hub Fac Upp Upp War Pro Fac Arm Lab Res Qua Res Tes Sec Acc Distress Signals 40 | . 1 . 2 . . . 4 1 . . . . . . 2 2 . 1 3 . . . . 4 5 . 5 1 2 3 2 2 Communications Jammed . | . . . . . . . . . . . . . . . . . . . . . . . . . . . . . . . . . Distress Signals . | . . . . . . . . . . . . . . . . . . . . . . . . . . . . . . . . . Times Spotted 1186 | . 18 9 10 4 . 5 28 18 36 3 28 . 6 32 33 15 7 35 97 17 27 29 18 63 59 . 55 51 65 28 175 215 Peak Tracking Total 21 | . 4 2 7 3 . 3 6 8 6 3 9 . 3 5 4 5 1 8 9 9 8 10 4 9 15 . 8 17 9 6 21 19 Tactical Retreats 69 | . . 1 1 . . 1 4 4 3 . 2 . . 2 . . . 5 4 . 2 1 . 10 6 . 3 6 4 4 4 2 Traps | -11 -10 -10 -9 -9 -9 -8 -8 -8 -7 -7 -7 -7 -6 -6 -6 -6 -6 -6 -5 -5 -5 -5 -4 -4 -4 -4 -3 -3 -2 -2 -2 -1 ------- Run | Scr Mat Min Mat Min Exi Min Mat Sto Fac Low Low Dat Pro Fac Ext Cet Arc Hub Fac Upp Upp War Pro Fac Arm Lab Res Qua Res Tes Sec Acc Traps Triggered 23 | . 2 . 1 . . . . . . . . . . 3 2 . . 1 2 . . . . 2 . . 5 . . 1 . 4 Indirectly 1 | . . . . . . . . . . . . . . . . . . 1 . . . . . . . . . . . . . . Trap Hack Attempts . | . . . . . . . . . . . . . . . . . . . . . . . . . . . . . . . . . Triggered . | . . . . . . . . . . . . . . . . . . . . . . . . . . . . . . . . . Disarmed . | . . . . . . . . . . . . . . . . . . . . . . . . . . . . . . . . . Reprogrammed 6 | . . . . . . . . . . . . . . . . . . . . . . . . 6 . . . . . . . . Reused 3 | . . . . . . . . . . . 1 . . . . . . 1 . . . . . 1 . . . . . . . . Traps Extracted . | . . . . . . . . . . . . . . . . . . . . . . . . . . . . . . . . . Installed 7 | . . . . . . . . . . 2 1 . 3 . . . . 1 . . . . . . . . . . . . . . Triggered 7 | . . . . . . . . . . . 1 . . . . . . 2 . . . 3 . 1 . . . . . . . . Machines | -11 -10 -10 -9 -9 -9 -8 -8 -8 -7 -7 -7 -7 -6 -6 -6 -6 -6 -6 -5 -5 -5 -5 -4 -4 -4 -4 -3 -3 -2 -2 -2 -1 ---------- Run | Scr Mat Min Mat Min Exi Min Mat Sto Fac Low Low Dat Pro Fac Ext Cet Arc Hub Fac Upp Upp War Pro Fac Arm Lab Res Qua Res Tes Sec Acc Machines Disabled 106 | . . . 2 . . . 5 3 . 1 . . . . . 2 . 13 7 1 . 2 . 2 8 1 6 7 2 11 14 19 Max in Single Turn 8 | . . . 1 . . . 2 1 . 1 . . . . . . . 8 4 1 . 2 . 1 1 1 2 1 1 2 1 2 Garrison Access 14 | . . . . . . . . . 1 . . . . 2 . . . 1 2 . . . . 2 . . . . 1 . . 5 Network Hub 3 | . . . . . . . . . . . . . . . . . . 3 . . . . . . . . . . . . . . Energy Cycler 1 | . . . . . . . . . . . . . . . . . . . . . . . . . . . . . . . . 1 Machines Sabotaged . | . . . . . . . . . . . . . . . . . . . . . . . . . . . . . . . . . Garrisons Compromised . | . . . . . . . . . . . . . . . . . . . . . . . . . . . . . . . . . Overloaded Fab Kills . | . . . . . . . . . . . . . . . . . . . . . . . . . . . . . . . . . Fab Network Shutdowns 1 | . . . . . . . . . . . . . . . . . . . 1 . . . . . . . . . . . . . Hacking | -11 -10 -10 -9 -9 -9 -8 -8 -8 -7 -7 -7 -7 -6 -6 -6 -6 -6 -6 -5 -5 -5 -5 -4 -4 -4 -4 -3 -3 -2 -2 -2 -1 --------- Run | Scr Mat Min Mat Min Exi Min Mat Sto Fac Low Low Dat Pro Fac Ext Cet Arc Hub Fac Upp Upp War Pro Fac Arm Lab Res Qua Res Tes Sec Acc Machines Accessed 110 | . 1 1 1 . 1 1 2 4 9 1 2 4 . 11 9 1 . 6 14 . 1 . 1 11 6 . 6 7 2 3 5 . Terminals 72 | . 1 . 1 . . 1 2 4 4 . . . . 5 8 1 . 5 8 . . . 1 8 5 . 4 7 . 2 5 . Fabricators 12 | . . . . . . . . . 1 . . . . 4 . . . . 3 . . . . 1 1 . 1 . . 1 . . Repair Stations . | . . . . . . . . . . . . . . . . . . . . . . . . . . . . . . . . . Recycling Units 8 | . . . . . . . . . 3 . . . . 1 1 . . . 1 . . . . . . . 1 . 1 . . . Scanalyzers . | . . . . . . . . . . . . . . . . . . . . . . . . . . . . . . . . . Garrison Access 8 | . . . . . . . . . 1 . . . . 1 . . . 1 2 . . . . 2 . . . . 1 . . . Total Hacks 511 | . 2 1 3 . 1 3 7 17 26 1 4 25 . 45 33 2 . 23 80 . 1 . 10 72 31 . 33 41 7 15 28 . Successful 277 | . 1 1 1 . 1 1 5 11 10 1 4 25 . 24 22 . . 14 36 . 1 . 8 34 16 . 16 20 2 5 18 . Failed 233 | . 1 . 2 . . 2 2 6 16 . . . . 21 10 2 . 9 44 . . . 2 38 15 . 17 21 5 10 10 . Catastrophic 31 | . 1 . . . . . . . . . . . . 1 . 1 . . 7 . . . . 6 1 . 5 2 3 1 3 . Database Lockouts 1 | . . . . . . . . . . . . . . . 1 . . . . . . . . . . . . . . . . . Manual 236 | . 2 . 3 . . 2 6 13 7 . . . . 19 30 1 . 14 31 . . 1 3 35 12 . 13 28 . 3 13 . Terminals 386 | . 2 . 3 . . 3 7 17 13 . . . . 28 32 2 . 19 49 . . . 10 69 27 . 24 41 . 12 28 . Fabricators 44 | . . . . . . . . . 2 . . . . 14 . . . . 16 . . . . 1 4 . 4 . . 3 . . Repair Stations . | . . . . . . . . . . . . . . . . . . . . . . . . . . . . . . . . . Recycling Units 23 | . . . . . . . . . 10 . . . . 2 1 . . . 4 . . . . . . . 5 . 1 . . . Scanalyzers . | . . . . . . . . . . . . . . . . . . . . . . . . . . . . . . . . . Garrison Access 25 | . . . . . . . . . 1 . . . . 1 . . . 4 11 . . . . 2 . . . . 6 . . . Terminal Hacks 159 | . 1 1 1 . 1 1 4 6 4 1 4 25 . 9 11 . . 5 12 . 1 . 8 23 9 . 7 10 . 4 11 . Record 23 | . . . . . 1 . . . . . 3 11 . . . . . . . . . . 7 . . . . 1 . . . . Part Schematic 15 | . . . . . . . . . . . . 7 . . 3 . . . 1 . . . . 1 . . 1 1 . . 1 . Robot Schematic 5 | . . . . . . . . . . . . 4 . . . . . 1 . . . . . . . . . . . . . . Robot Analysis 1 | . . . . . . . . . . . . . . . . . . . . . . . . 1 . . . . . . . . Prototype ID Bank 28 | . . . . . . . 1 . 2 . . 3 . 3 2 . . 3 3 . . . 1 5 1 . 1 1 . 1 1 . Open Door 7 | . . 1 . . . . . 1 . 1 1 . . . . . . . . . 1 . . . . . . 1 . . 1 . Level Access Points 1 | . . . . . . . . . . . . . . . . . . . . . . . . . . . . . . . 1 . Branch Access Points 6 | . . . 1 . . . 1 . 1 . . . . . . . . . 2 . . . . . . . 1 . . . . . Machine Index 1 | . . . . . . . . . . . . . . . . . . . . . . . . 1 . . . . . . . . Terminal Index 1 | . . . . . . . . . . . . . . . . . . . 1 . . . . . . . . . . . . . Fabricator Index 3 | . . . . . . . . . . . . . . 1 . . . . 1 . . . . . . . 1 . . . . . Alert Level 7 | . . . . . . 1 . . . . . . . . 1 . . . . . . . . 1 1 . 1 1 . . 1 . Unreport Threat 27 | . . . . . . . 1 2 . . . . . 1 5 . . . 1 . . . . 5 3 . 1 3 . 3 2 . Locate Traps 7 | . . . . . . . 1 . . . . . . . . . . . 1 . . . . 1 2 . . 1 . . 1 . Reprogram Traps 1 | . . . . . . . . . . . . . . . . . . . . . . . . 1 . . . . . . . . Dispatch Records 1 | . . . . . . . . . . . . . . . . . . . . . . . . 1 . . . . . . . . Recall Reinforcements 4 | . 1 . . . . . . . . . . . . . . . . . 1 . . . . 1 . . . 1 . . . . Recall Assault 4 | . . . . . . . . . . . . . . . . . . . . . . . . . 2 . . . . . 2 . Hauler Manifests 8 | . . . . . . . . 1 1 . . . . 1 . . . 1 1 . . . . 3 . . . . . . . . Registered Components 3 | . . . . . . . . 1 . . . . . 1 . . . . . . . . . 1 . . . . . . . . Registered Prototypes 4 | . . . . . . . . 1 . . . . . 1 . . . . . . . . . 1 . . 1 . . . . . Zone Layout 1 | . . . . . . . . . . . . . . 1 . . . . . . . . . . . . . . . . . . Activate Exoskeleton 1 | . . . . . . . . . . . . . . . . . . . . . . . . . . . . . . . 1 . Fabricator Hacks 16 | . . . . . . . . . . . . . . 7 . . . . 6 . . . . . 1 . 2 . . . . . Load Schematic 7 | . . . . . . . . . . . . . . 3 . . . . 2 . . . . . 1 . 1 . . . . . Build 9 | . . . . . . . . . . . . . . 4 . . . . 4 . . . . . . . 1 . . . . . Repair Station Hacks . | . . . . . . . . . . . . . . . . . . . . . . . . . . . . . . . . . Recycling Unit Hacks 6 | . . . . . . . . . 2 . . . . . . . . . 1 . . . . . . . 2 . 1 . . . Retrieve Matter 1 | . . . . . . . . . . . . . . . . . . . . . . . . . . . 1 . . . . . Retrieve Components 5 | . . . . . . . . . 2 . . . . . . . . . 1 . . . . . . . 1 . 1 . . . Scanalyzer . | . . . . . . . . . . . . . . . . . . . . . . . . . . . . . . . . . Garrison Access Hacks 6 | . . . . . . . . . . . . . . 1 . . . . 2 . . . . 2 . . . . 1 . . . Seal Access 6 | . . . . . . . . . . . . . . 1 . . . . 2 . . . . 2 . . . . 1 . . . Unauthorized Hacks 90 | . . . . . . . 1 5 4 . . . . 7 11 . . 9 15 . . . . 9 6 . 5 10 . 1 7 . Terminals 68 | . . . . . . . 1 5 . . . . . 6 10 . . 6 4 . . . . 8 6 . 5 10 . . 7 . Track 18 | . . . . . . . . 2 . . . . . 1 5 . . 2 1 . . . . 1 . . 1 3 . . 2 . Assimilate 4 | . . . . . . . . . . . . . . . . . . 1 . . . . . 2 1 . . . . . . . Botnet 34 | . . . . . . . . 3 . . . . . 4 4 . . 2 3 . . . . 4 4 . 2 5 . . 3 . Detonate 2 | . . . . . . . 1 . . . . . . . . . . . . . . . . . . . 1 . . . . . Disrupt 4 | . . . . . . . . . . . . . . . 1 . . 1 . . . . . . . . . 1 . . 1 . Operators 6 | . . . . . . . . . . . . . . 1 . . . . . . . . . 1 1 . 1 1 . . 1 . Fabricators 9 | . . . . . . . . . 1 . . . . 1 . . . . 5 . . . . 1 . . . . . 1 . . Report 1 | . . . . . . . . . . . . . . . . . . . 1 . . . . . . . . . . . . . Prioritize 2 | . . . . . . . . . . . . . . 1 . . . . 1 . . . . . . . . . . . . . Siphon 1 | . . . . . . . . . . . . . . . . . . . 1 . . . . . . . . . . . . . Haulers 4 | . . . . . . . . . 1 . . . . . . . . . 1 . . . . 1 . . . . . 1 . . Download 1 | . . . . . . . . . . . . . . . . . . . 1 . . . . . . . . . . . . . Repair Stations . | . . . . . . . . . . . . . . . . . . . . . . . . . . . . . . . . . Recycling Units 3 | . . . . . . . . . 2 . . . . . 1 . . . . . . . . . . . . . . . . . Tunnel 3 | . . . . . . . . . 2 . . . . . 1 . . . . . . . . . . . . . . . . . Scanalyzers . | . . . . . . . . . . . . . . . . . . . . . . . . . . . . . . . . . Garrison Access 10 | . . . . . . . . . 1 . . . . . . . . 3 6 . . . . . . . . . . . . . Broadcast 2 | . . . . . . . . . . . . . . . . . . 1 1 . . . . . . . . . . . . . Reprogram 3 | . . . . . . . . . . . . . . . . . . 1 2 . . . . . . . . . . . . . Intercept 3 | . . . . . . . . . . . . . . . . . . 1 2 . . . . . . . . . . . . . Watchers 1 | . . . . . . . . . . . . . . . . . . . 1 . . . . . . . . . . . . . Jam 1 | . . . . . . . . . 1 . . . . . . . . . . . . . . . . . . . . . . . Data Cores Recovered 1 | . . . . . . . . . . . . . . . . . . . . . . . . . . . . . . . 1 . Used 1 | . . . . . . . . . . . . . . . . . . . . . . . . . . . . . . . 1 . Hacking Detections 72 | . 1 . 1 . . 1 2 4 6 . . . . 10 5 1 . 5 7 . . . 1 7 4 . 5 4 2 2 4 . Full Trace Events 10 | . . . 1 . . 1 . . 1 . . . . 2 1 1 . . 3 . . . . . . . . . . . . . Feedback Events . | . . . . . . . . . . . . . . . . . . . . . . . . . . . . . . . . . Feedback Blocked . | . . . . . . . . . . . . . . . . . . . . . . . . . . . . . . . . . Robot Schematics Acquired 5 | . . . . . . . . . . . . 4 . . . . . 1 . . . . . . . . . . . . . . Robots Built 3 | . . . . . . . . . . . . . . 3 . . . . . . . . . . . . . . . . . . Matter 252 | . . . . . . . . . . . . . . 252 . . . . . . . . . . . . . . . . . . Time 134 | . . . . . . . . . . . . . . 134 . . . . . . . . . . . . . . . . . . Total Robot Build Rating 12 | . . . . . . . . . . . . . . 12 . . . . . . . . . . . . . . . . . . Part Schematics Acquired 16 | . . . . . . . . . . . . 7 . . 3 . . . 2 . . . . 1 . . 1 1 . . 1 . Parts Built 10 | . . . . . . . . . . . . . . 4 . . . . 4 . . . . . . . 2 . . . . . Matter 1104 | . . . . . . . . . . . . . . 424 . . . . 446 . . . . . . . 234 . . . . . Time 257 | . . . . . . . . . . . . . . 88 . . . . 111 . . . . . . . 58 . . . . . Total Part Build Rating 64 | . . . . . . . . . . . . . . 24 . . . . 26 . . . . . . . 14 . . . . . Parts Repaired . | . . . . . . . . . . . . . . . . . . . . . . . . . . . . . . . . . Time . | . . . . . . . . . . . . . . . . . . . . . . . . . . . . . . . . . Parts Recycled . | . . . . . . . . . . . . . . . . . . . . . . . . . . . . . . . . . Recycled Matter . | . . . . . . . . . . . . . . . . . . . . . . . . . . . . . . . . . Retrieved Matter . | . . . . . . . . . . . . . . . . . . . . . . . . . . . . . . . . . Retrieved Components 8 | . . . . . . . . . 3 . . . . . . . . . . . . . . . . . 3 . 2 . . . Parts Scanalyzed . | . . . . . . . . . . . . . . . . . . . . . . . . . . . . . . . . . Part Schematics Acquired . | . . . . . . . . . . . . . . . . . . . . . . . . . . . . . . . . . Parts Damaged . | . . . . . . . . . . . . . . . . . . . . . . . . . . . . . . . . . Bothacking | -11 -10 -10 -9 -9 -9 -8 -8 -8 -7 -7 -7 -7 -6 -6 -6 -6 -6 -6 -5 -5 -5 -5 -4 -4 -4 -4 -3 -3 -2 -2 -2 -1 ------------ Run | Scr Mat Min Mat Min Exi Min Mat Sto Fac Low Low Dat Pro Fac Ext Cet Arc Hub Fac Upp Upp War Pro Fac Arm Lab Res Qua Res Tes Sec Acc Used RIF Installer . | . . . . . . . . . . . . . . . . . . . . . . . . . . . . . . . . . Robots Hacked . | . . . . . . . . . . . . . . . . . . . . . . . . . . . . . . . . . Non-combat . | . . . . . . . . . . . . . . . . . . . . . . . . . . . . . . . . . Combat . | . . . . . . . . . . . . . . . . . . . . . . . . . . . . . . . . . Robot Hacks Applied . | . . . . . . . . . . . . . . . . . . . . . . . . . . . . . . . . . Relay Couplers Released 8 | . . . . . . . . . . . . . . 1 . . . 1 1 . . . . 2 . . . . 2 . . 1 Machine Destruction 3 | . . . . . . . . . . . . . . 1 . . . 1 . . . . . . . . . . . . . 1 Programmers 5 | . . . . . . . . . . . . . . . . . . . 1 . . . . 2 . . . . 2 . . . Robots Rewired 28 | . . . . . . . . . . . 2 . . . 15 . . . . 3 2 . . . 5 . . . . 1 . . Allies Hacked . | . . . . . . . . . . . . . . . . . . . . . . . . . . . . . . . . . Hacks Repelled . | . . . . . . . . . . . . . . . . . . . . . . . . . . . . . . . . . Allies | -11 -10 -10 -9 -9 -9 -8 -8 -8 -7 -7 -7 -7 -6 -6 -6 -6 -6 -6 -5 -5 -5 -5 -4 -4 -4 -4 -3 -3 -2 -2 -2 -1 -------- Run | Scr Mat Min Mat Min Exi Min Mat Sto Fac Low Low Dat Pro Fac Ext Cet Arc Hub Fac Upp Upp War Pro Fac Arm Lab Res Qua Res Tes Sec Acc Total Allies 55 | . . . . . . . . . . . 4 . 1 3 22 . . 2 2 3 2 . . 1 6 . . . . 1 8 . Largest Group 15 | . . . . . . . . . . . 2 . 1 3 15 14 . 1 1 3 3 2 . 1 5 . . . . 1 7 1 Highest-Rated Group 1075 | . . . . . . . . . . . 50 . 94 94 570 555 . 32 49 60 60 59 . 10 235 . . . . 24 1075 1075 Highest-Rated Ally 1075 | . . . . . . . . . . . 25 . 94 94 156 156 . 32 49 20 30 30 . 10 56 . . . . 24 1075 1075 Total Orders 2 | . . . . . . . . . . . . . 2 . . . . . . . . . . . . . . . . . . . EXPLORE 1 | . . . . . . . . . . . . . 1 . . . . . . . . . . . . . . . . . . . RETURN 1 | . . . . . . . . . . . . . 1 . . . . . . . . . . . . . . . . . . . Ally Attacks 612 | . . . . . . . . . . . 8 . 3 11 129 75 . 1 11 8 . . . . 58 . . . . . 121 187 Total Damage 24459 | . . . . . . . . . . . 102 . 92 416 2655 2127 . 62 383 148 . . . . 2288 . . . . . 6509 9677 Kills 116 | . . . . . . . . . . . . . 1 3 15 16 . 1 1 1 . . . . 11 . . . . . 25 42 Allies Corrupted 3 | . . . . . . . . . . . . . . . . . . 1 . . . 2 . . . . . . . . . . Allies Melted . | . . . . . . . . . . . . . . . . . . . . . . . . . . . . . . . . . Intel | -11 -10 -10 -9 -9 -9 -8 -8 -8 -7 -7 -7 -7 -6 -6 -6 -6 -6 -6 -5 -5 -5 -5 -4 -4 -4 -4 -3 -3 -2 -2 -2 -1 ------- Run | Scr Mat Min Mat Min Exi Min Mat Sto Fac Low Low Dat Pro Fac Ext Cet Arc Hub Fac Upp Upp War Pro Fac Arm Lab Res Qua Res Tes Sec Acc Robot Analysis Total 1 | . . . . . . . . . . . . . . . . . . . . . . . . 1 . . . . . . . . Derelict Logs Recovered 12 | . . 1 . 1 . . . . . 2 1 . 3 . . . . . . 1 1 . 2 . . . . . . . . . Drone Launches 2 | . . . . . . . . . . . . . 2 . . . . . . . . . . . . . . . . . . . Drone Recoveries 1 | . . . . . . . . . . . . . 1 . . . . . . . . . . . . . . . . . . . Exploration | -11 -10 -10 -9 -9 -9 -8 -8 -8 -7 -7 -7 -7 -6 -6 -6 -6 -6 -6 -5 -5 -5 -5 -4 -4 -4 -4 -3 -3 -2 -2 -2 -1 ------------- Run | Scr Mat Min Mat Min Exi Min Mat Sto Fac Low Low Dat Pro Fac Ext Cet Arc Hub Fac Upp Upp War Pro Fac Arm Lab Res Qua Res Tes Sec Acc Turns Passed 22853 | 35 408 481 219 276 103 319 347 448 1448 682 833 56 797 995 952 213 61 367 1751 657 690 661 575 1242 1011 161 1004 708 1741 553 1365 1694 Spaces Moved 22545 | 31 355 364 169 298 142 351 214 334 1583 890 929 78 771 839 713 180 39 344 1426 737 712 668 660 1293 995 180 795 776 2079 628 1033 1939 Core 2 | 2 . . . . . . . . . . . . . . . . . . . . . . . . . . . . . . . . Treads . | . . . . . . . . . . . . . . . . . . . . . . . . . . . . . . . . . Legs . | . . . . . . . . . . . . . . . . . . . . . . . . . . . . . . . . . Wheels 950 | 29 355 364 169 33 . . . . . . . . . . . . . . . . . . . . . . . . . . . . Hover 21593 | . . . . 265 142 351 214 334 1583 890 929 78 771 839 713 180 39 344 1426 737 712 668 660 1293 995 180 795 776 2079 628 1033 1939 Flight . | . . . . . . . . . . . . . . . . . . . . . . . . . . . . . . . . . Fastest Speed 50 | 50 80 80 80 72 72 72 72 72 72 72 72 72 72 68 68 68 68 68 68 68 68 68 68 68 68 68 68 68 63 63 63 63 Average Speed 68 | 88 82 80 80 73 72 72 72 72 72 72 72 72 72 71 68 68 68 68 68 68 68 68 68 68 68 70 68 68 64 63 65 63 Slowest Speed 220 | 100 90 80 80 90 72 72 72 72 72 72 72 72 72 72 68 68 68 68 68 68 68 68 68 68 68 138 142 138 142 63 220 63 Overloaded Moves . | . . . . . . . . . . . . . . . . . . . . . . . . . . . . . . . . . Propulsion Burnouts . | . . . . . . . . . . . . . . . . . . . . . . . . . . . . . . . . . Robots Hopped . | . . . . . . . . . . . . . . . . . . . . . . . . . . . . . . . . . Cave-ins Triggered . | . . . . . . . . . . . . . . . . . . . . . . . . . . . . . . . . . Exploration Rate (%) 63 | 3 56 67 22 60 52 90 31 40 43 93 97 70 97 29 85 65 73 53 48 92 92 86 94 44 77 97 26 76 55 63 60 68 Regions Visited 32 Branch Regions 22 Pre-discovered Areas 8 | . . . . . 1 . . . 2 . 1 1 . . 1 . . . . . . . 2 . . . . . . . . . Known Exits Taken 10 | . . . 1 . . . 1 . 1 . . . . 1 . . . 1 1 . 1 . . 1 . . 1 . . . 1 . Unknown Exits Taken 22 | 1 1 1 . 1 1 1 . 1 . 1 1 1 1 . 1 1 1 . . 1 . 1 1 . 1 1 . 1 1 1 . . Scrap Searched 26 | . . 1 . 2 . 1 . . . 8 2 . 3 . . . . . . 3 2 . 4 . . . . . . . . . Spaces Dug 156 | . . . . . . . . . . . . . . . . . . 6 8 . 1 2 . 17 11 . 27 12 15 3 10 44 Terrain Destroyed 1278 | . . 1 2 . . . 53 . . . . . . . . . . 336 42 . 5 35 3 19 14 . 201 19 50 21 47 430 Melee . | . . . . . . . . . . . . . . . . . . . . . . . . . . . . . . . . . Projectile 146 | . . 1 2 . . . . . . . . . . . . . . 8 11 . 2 2 . 19 14 . 6 15 16 4 28 18 AOE 1132 | . . . . . . . 53 . . . . . . . . . . 328 31 . 3 33 3 . . . 195 4 34 17 19 412 Terrain Rammed . | . . . . . . . . . . . . . . . . . . . . . . . . . . . . . . . . . Walls Destroyed . | . . . . . . . . . . . . . . . . . . . . . . . . . . . . . . . . . Machines Disabled . | . . . . . . . . . . . . . . . . . . . . . . . . . . . . . . . . . Actions | -11 -10 -10 -9 -9 -9 -8 -8 -8 -7 -7 -7 -7 -6 -6 -6 -6 -6 -6 -5 -5 -5 -5 -4 -4 -4 -4 -3 -3 -2 -2 -2 -1 --------- Run | Scr Mat Min Mat Min Exi Min Mat Sto Fac Low Low Dat Pro Fac Ext Cet Arc Hub Fac Upp Upp War Pro Fac Arm Lab Res Qua Res Tes Sec Acc Total 27993 | 35 416 476 230 330 142 393 309 457 1771 913 1027 77 990 1157 1097 256 57 417 1916 842 863 837 731 1508 1205 210 1079 953 2485 781 1673 2360 Wait 1768 | . 9 39 33 15 . 19 23 47 68 4 20 . 186 214 202 51 1 15 183 29 73 97 18 69 56 . 71 33 76 21 52 44 Move 22509 | 30 354 363 168 297 141 350 213 333 1582 889 928 77 770 838 712 179 38 343 1423 736 711 667 659 1291 994 179 794 775 2078 627 1032 1938 Hop . | . . . . . . . . . . . . . . . . . . . . . . . . . . . . . . . . . Pick Up 62 | . 2 3 1 . 1 . 2 1 2 1 2 . 3 1 1 . 1 . 4 2 . 1 . 3 . 3 3 2 8 . 10 5 Fast Attach 231 | 5 1 2 6 4 . . 1 8 8 1 2 . 3 6 1 3 . 2 18 . 4 7 . 9 6 9 24 9 37 13 27 15 Attach 14 | . . 1 . . . . . . . . . . . . . . . . . . . . . 1 . 1 3 1 3 . 4 . Detach 8 | . . . . . . . . . . . . . . . . . . . 2 . . 1 . . . . 2 1 1 . 1 . Swap 47 | . 2 . . . . 1 1 . 3 . . . 1 3 1 1 . . 4 1 . 4 . . 1 2 1 6 6 . 9 . Drop 271 | . 4 4 5 2 . . 3 8 9 2 5 . 5 7 3 4 1 1 22 3 4 9 . 11 5 11 23 10 48 14 26 22 Fire 1893 | . 27 39 11 11 . 10 44 43 61 8 29 . 10 32 34 6 7 36 135 24 25 31 26 82 73 5 90 83 179 71 403 258 Melee . | . . . . . . . . . . . . . . . . . . . . . . . . . . . . . . . . . Ram 1 | . . . . . . . . . . . . . . . . . . . . . . . . . . . . . . . 1 . Kick . | . . . . . . . . . . . . . . . . . . . . . . . . . . . . . . . . . Crush . | . . . . . . . . . . . . . . . . . . . . . . . . . . . . . . . . . Escape Stasis 10 | . . . . . . . . . . . . . . 3 1 . . . 5 . . . . 1 . . . . . . . . Rewire 193 | . . . . . . . . . . . 8 . . . 105 . . . . 19 26 . . . 29 . . . . 6 . . Trap 7 | . . . . . . . . . . 2 1 . 3 . . . . 1 . . . . . . . . . . . . . . Miscellaneous 979 | . 17 25 6 1 . 13 22 17 38 6 32 . 9 53 37 12 9 19 120 28 20 20 28 41 41 . 68 33 49 29 108 78 Route ------- -11/Scrapyard -10/Materials (discovered 3 exits: *Mat / *Min x2) -10/Mines (discovered 2 exits: *Mat x2) -9/Materials (discovered 2 exits: *Min x2) -9/Mines (discovered 3 exits: *Mat x2 / *Exi) -9/Exiles -8/Mines (discovered 2 exits: *Mat x2) -8/Materials -8/Storage -7/Factory (discovered 4 exits: *Fac x2 / *Low x2) -7/Lower Caves -7/Lower Caves (discovered 2 exits: *Fac / *Dat) -7/Data Miner -6/Proximity Caves -6/Factory (discovered 3 exits: Fac / *Low / *Ext) -6/Extension (discovered 3 exits: *Fac x2 / *Cet) -6/Cetus (discovered 2 exits: *Fac / [*Arc]) -6/Archives (discovered 2 exits: Fac / *Hub) -6/Hub_04(d) (discovered 3 exits: *Fac x3) -5/Factory (discovered 4 exits: *Fac x2 / *Upp x2) -5/Upper Caves -5/Upper Caves (discovered 2 exits: *Fac / *War) -5/Warlord -4/Proximity Caves -4/Factory (discovered 5 exits: *Res x2 / [Upp x2] / *Arm) -4/Armory (discovered 3 exits: Res x2 / [*Lab]) -4/Lab -3/Research (discovered 2 exits: *Qua x2) -3/Quarantine -2/Research (discovered 5 exits: *Acc x3 / *Tes x2) -2/Testing (discovered 2 exits: Acc / *Sec) -2/Section 7 -1/Access (discovered 2 exits: [*Sur] / [Com]) Tau Ceti IV Orbit History --------- Turn | Location | Event 1 | -11/Scrapyard | Upgraded with Propulsion slot (x1) 1 | -11/Scrapyard | Upgraded with Weapon slot (x1) 5 | -11/Scrapyard | Discovered new exit (range 15) 36 | -11/Scrapyard | Entered Materials 36 | -10/Materials | Discovered new exit (range 8) 247 | -10/Materials | Discovered new exit (range 8) 312 | -10/Materials | Build established: Mutant 312 | -10/Materials | Core integrity fell below 50% 346 | -10/Materials | Discovered new exit (range 13) 444 | -10/Materials | Entered Mines 446 | -10/Mines | Reached level 2 457 | -10/Mines | Discovered new exit (range 12) 607 | -10/Mines | Discovered new exit (range 11) 812 | -10/Mines | Met a Derelict who couldn't figure out how to use a Trap Extractor 925 | -10/Mines | Entered Materials 927 | -9/Materials | Reached level 3 938 | -9/Materials | Identified exit to Mines 978 | -9/Materials | Upgraded with Utility slot (x1) 1019 | -9/Materials | Reached level 4 1119 | -9/Materials | Upgraded with Weapon slot (x1) 1144 | -9/Materials | Entered Mines 1145 | -9/Mines | Assembled infested the area 1169 | -9/Mines | Met 8R-AWN 1190 | -9/Mines | Upgraded with Propulsion slot (x1) 1206 | -9/Mines | Upgraded with Utility slot (x1) 1221 | -9/Mines | Discovered new exit (range 10) 1243 | -9/Mines | Discovered new exit (range 10) 1268 | -9/Mines | Found a damaged Exp. Sensor Array with a note attached 1327 | -9/Mines | Reached level 5 1371 | -9/Mines | Learned Materials non-interactive machine intel 1417 | -9/Mines | Discovered new exit (range 5) 1420 | -9/Mines | Entered Exiles 1440 | -9/Exiles | Welcomed by 8R-AWN 1450 | -9/Exiles | Met EX-HEX 1478 | -9/Exiles | Met EX-DEC 1483 | -9/Exiles | Learned location of Zion (-6) 1517 | -9/Exiles | Discovered new exit (range 10) 1523 | -9/Exiles | Entered Mines 1643 | -8/Mines | Discovered new exit (range 16) 1821 | -8/Mines | Build established: Scavenger-Gunner 1836 | -8/Mines | Discovered new exit (range 8) 1842 | -8/Mines | Entered Materials 1843 | -8/Materials | Loaded intel: 24 non-interactive machine locations 1844 | -8/Materials | Reached level 6 1884 | -8/Materials | Reached level 7 1948 | -8/Materials | Identified exit to Storage 2048 | -8/Materials | Reached level 8 2105 | -8/Materials | Destroyed 9 combat bots 2175 | -8/Materials | Build established: Gunner 2189 | -8/Materials | Entered Storage 2191 | -8/Storage | Reached level 9 2399 | -8/Storage | Reached level 10 2533 | -8/Storage | Upgraded with Weapon slot (x1) 2563 | -8/Storage | Discovered new exit (range 17) 2637 | -8/Storage | Entered Factory 2639 | -7/Factory | Reached level 11 2662 | -7/Factory | Upgraded with Utility slot (x1) 2785 | -7/Factory | Upgraded with Utility slot (x1) 2851 | -7/Factory | Identified exit to Lower Caves 2880 | -7/Factory | Discovered new exit (range 6) 2900 | -7/Factory | Upgraded with Power slot (x1) 2924 | -7/Factory | Reached level 12 3002 | -7/Factory | Upgraded with Utility slot (x1) 3428 | -7/Factory | Garrison activated, responded to threat 3451 | -7/Factory | Reached level 13 3667 | -7/Factory | Reached level 14 3759 | -7/Factory | Discovered new exit (range 8) 4085 | -7/Factory | Entered Lower Caves 4264 | -7/Lower Caves | Learned Factory terminal intel 4297 | -7/Lower Caves | Learned Factory emergency access door positions 4317 | -7/Lower Caves | Build established: Scavenger-Gunner 4677 | -7/Lower Caves | Discovered new exit (range 8) 4767 | -7/Lower Caves | Entered another Lower Caves area 4784 | -7/Lower Caves | Reached level 15 4838 | -7/Lower Caves | Discovered new exit (range 7) 5022 | -7/Lower Caves | A Commander dispatched an escort 5024 | -7/Lower Caves | Learned Extension garrison access intel 5207 | -7/Lower Caves | Attracted the attention of an 0b10 outpost 5279 | -7/Lower Caves | Destroyed 9 combat bots 5534 | -7/Lower Caves | Discovered new exit (range 10) 5600 | -7/Lower Caves | Entered Data Miner 5600 | -7/Data Miner | Discovered new exit (range 6) 5613 | -7/Data Miner | Met Data Miner 5629 | -7/Data Miner | Learned location of Section 7 (-2) 5629 | -7/Data Miner | Acquired the access code to Warlord's prototype stash 5639 | -7/Data Miner | Received God Mode back door access code from Data Miner 5656 | -7/Data Miner | Entered Proximity Caves 5658 | -6/Proximity Caves | Reached level 16 5772 | -6/Proximity Caves | Attracted the attention of an 0b10 checkpoint 5780 | -6/Proximity Caves | Escorted by Enhanced Grunt 5981 | -6/Proximity Caves | Reached level 17 6008 | -6/Proximity Caves | Discovered new exit (range 11) 6040 | -6/Proximity Caves | Learned 8 Factory zone layouts 6281 | -6/Proximity Caves | Spotted B-75 Beast 6286 | -6/Proximity Caves | Destroyed B-75 Beast 6453 | -6/Proximity Caves | Entered Factory 6453 | -6/Factory | Accompanied by 1 ally 6454 | -6/Factory | Identified exit to Extension 6455 | -6/Factory | Identified exit to Lower Caves 6455 | -6/Factory | Identified exit to Factory 6457 | -6/Factory | Loaded intel: 22 terminal locations 6489 | -6/Factory | Reached level 18 6772 | -6/Factory | Upgraded with Utility slot (x1) 6906 | -6/Factory | Incoming assault squad redirected 6925 | -6/Factory | Upgraded with Utility slot (x1) 6925 | -6/Factory | Found Prototype Device 6925 | -6/Factory | Identified Exp. Thermal Shield 7001 | -6/Factory | Fabricated Cmb. Gravmag System? 7174 | -6/Factory | Fabricated Cmb. Gravmag System (x2) 7177 | -6/Factory | Upgraded with Propulsion slot (x1) 7194 | -6/Factory | Reached level 19 7217 | -6/Factory | Build established: Scavenger-Tank 7318 | -6/Factory | Fabricated L-41 Fighter (x3) 7448 | -6/Factory | Entered Extension 7448 | -6/Extension | Accompanied by 1 ally 7901 | -6/Extension | Build established: Commander-Tank 7948 | -6/Extension | Disrupted transfer network 7956 | -6/Extension | Spotted B-75 Beast 7974 | -6/Extension | Destroyed B-75 Beast 7977 | -6/Extension | Spotted B-75 Beast 7980 | -6/Extension | Destroyed B-75 Beast 7985 | -6/Extension | Discovered exit to Factory (range 13) 8058 | -6/Extension | Rescued a captive Derelict 8084 | -6/Extension | Reached level 20 8117 | -6/Extension | Rescued a captive Derelict 8208 | -6/Extension | Rescued A7 8213 | -6/Extension | Incoming investigation squad redirected 8256 | -6/Extension | Rescued a captive Derelict 8258 | -6/Extension | Rescued a captive Derelict 8272 | -6/Extension | Incoming investigation squad redirected 8329 | -6/Extension | Rescued a captive Derelict 8330 | -6/Extension | Rescued a captive Derelict 8330 | -6/Extension | Central database locked down 8349 | -6/Extension | Discovered exit to Factory (range 10) 8350 | -6/Extension | Discovered new exit (range 6) 8400 | -6/Extension | Entered Cetus 8400 | -6/Cetus | Accompanied by 14 allies (A7) 8405 | -6/Cetus | Acquired a Cetus Manufacturing Module code from A7 8413 | -6/Cetus | Spotted Cetus Guard 8413 | -6/Cetus | Spotted Cetus Guard 8415 | -6/Cetus | Spotted Cetus Guard 8416 | -6/Cetus | Spotted Cetus Guard 8417 | -6/Cetus | Allies destroyed Cetus Guard 8426 | -6/Cetus | Allies destroyed Cetus Guard 8429 | -6/Cetus | Destroyed Cetus Guard 8430 | -6/Cetus | Allies destroyed Cetus Guard 8437 | -6/Cetus | Cetus Manufacturing Module disabled 8489 | -6/Cetus | Failed to start Cetus Manufacturing Module 8511 | -6/Cetus | Discovered new exit (range 17) 8536 | -6/Cetus | Spotted Cetus Guard 8536 | -6/Cetus | Spotted Cetus Guard 8546 | -6/Cetus | Spotted Cetus Guard 8549 | -6/Cetus | Spotted Cetus Guard 8555 | -6/Cetus | Discovered exit to Factory (range 19) 8560 | -6/Cetus | Allies destroyed Cetus Guard 8566 | -6/Cetus | Allies destroyed Cetus Guard 8567 | -6/Cetus | Allies destroyed A7 8568 | -6/Cetus | Extracted ID and sensor layout for unrecognized location from A7's data core 8569 | -6/Cetus | Destroyed Cetus Guard 8572 | -6/Cetus | Destroyed Cetus Guard 8584 | -6/Cetus | Reached level 21 8584 | -6/Cetus | Met Revision 17 8603 | -6/Cetus | Build established: Scavenger-Tank 8613 | -6/Cetus | Entered Archives 8629 | -6/Archives | Discovered exit to Factory (range 20) 8647 | -6/Archives | Discovered new exit (range 23) 8674 | -6/Archives | Entered Hub_04(d) 8724 | -6/Hub_04(d) | Upgraded with Utility slot (x1) 8727 | -6/Hub_04(d) | Discovered exit to Factory (range 14) 8734 | -6/Hub_04(d) | Garrison activated, responded to threat 8817 | -6/Hub_04(d) | Discovered exit to Factory (range 11) 8877 | -6/Hub_04(d) | Discovered exit to Factory (range 20) 8887 | -6/Hub_04(d) | Upgraded with Utility slot (x1) 8954 | -6/Hub_04(d) | Network Hub disabled 8983 | -6/Hub_04(d) | Network Hub disabled 9008 | -6/Hub_04(d) | Network Hub disabled 9018 | -6/Hub_04(d) | Spotted Lightning 9018 | -6/Hub_04(d) | Spotted Lightning 9018 | -6/Hub_04(d) | Spotted Lightning 9041 | -6/Hub_04(d) | Entered Factory 9042 | -5/Factory | Identified exit to Upper Caves 9043 | -5/Factory | Reached level 22 9153 | -5/Factory | Incoming investigation squad redirected 9220 | -5/Factory | Fabricated Imp. Coolant Injector (x2) 9255 | -5/Factory | Fabricated Imp. Force Field (x2) 9291 | -5/Factory | Incoming investigation squad redirected 9341 | -5/Factory | First assault squad dispatched 9344 | -5/Factory | Destroyed 7 combat bots 9378 | -5/Factory | Garrison activated, responded to threat 9416 | -5/Factory | Destroyed 8 combat bots 9621 | -5/Factory | Upgraded with Weapon slot (x1) 9634 | -5/Factory | Reached level 23 9660 | -5/Factory | Incoming assault squad redirected 9670 | -5/Factory | Incoming assault squad redirected 9837 | -5/Factory | Incoming investigation squad redirected 9924 | -5/Factory | Garrison activated, responded to threat 9956 | -5/Factory | Local fabrication network quarantined 10085 | -5/Factory | Discovered new exit (range 4) 10302 | -5/Factory | Incoming assault squad redirected 10362 | -5/Factory | Build established: Scavenger-Scout 10568 | -5/Factory | Incoming assault squad redirected 10590 | -5/Factory | Discovered new exit (range 12) 10633 | -5/Factory | Destroyed 7 combat bots 10653 | -5/Factory | Reached level 24 10653 | -5/Factory | High security lockdown imminent 10733 | -5/Factory | High security lockdown engaged 10792 | -5/Factory | Entered Upper Caves 10889 | -5/Upper Caves | Attracted the attention of an 0b10 checkpoint 11185 | -5/Upper Caves | Spotted B-75 Beast 11193 | -5/Upper Caves | Destroyed B-75 Beast 11213 | -5/Upper Caves | Learned Factory security intel 11236 | -5/Upper Caves | Discovered new exit (range 22) 11286 | -5/Upper Caves | Attacked by a delusional Derelict stockpiling Unaware 11352 | -5/Upper Caves | Attracted the attention of an 0b10 outpost 11399 | -5/Upper Caves | Destroyed 7 combat bots 11449 | -5/Upper Caves | Entered another Upper Caves area 11449 | -5/Upper Caves | Accompanied by 3 allies 11472 | -5/Upper Caves | Discovered new exit (range 11) 11527 | -5/Upper Caves | Found Imp. Powered Armor 11621 | -5/Upper Caves | Attracted the attention of an 0b10 checkpoint 11686 | -5/Upper Caves | Attracted the attention of an 0b10 outpost 11739 | -5/Upper Caves | Destroyed 7 combat bots 11880 | -5/Upper Caves | Identified exit to Warlord 12139 | -5/Upper Caves | Entered Warlord 12139 | -5/Warlord | Accompanied by 2 allies 12163 | -5/Warlord | System corruption cleaned by Quarantine Array 12488 | -5/Warlord | Met Warlord 12495 | -5/Warlord | Opened Warlord's prototype stash 12498 | -5/Warlord | Found Prototype Reactor 12498 | -5/Warlord | Identified Vortex Chain Reactor 12505 | -5/Warlord | Found Prototype Device 12505 | -5/Warlord | Identified System Purifier 12507 | -5/Warlord | Warlord's base attacked by MAIN.C 12523 | -5/Warlord | Found Prototype Processor 12523 | -5/Warlord | Identified Spectral Analyzer 12666 | -5/Warlord | Reached level 25 12710 | -5/Warlord | Warlord forces counterattacked 12720 | -5/Warlord | Destroyed 14 combat bots 12780 | -5/Warlord | Discovered new exit (range 15) 12787 | -5/Warlord | Destroyed 12 combat bots 12800 | -5/Warlord | Entered Proximity Caves 12869 | -4/Proximity Caves | Attracted the attention of an 0b10 base 12895 | -4/Proximity Caves | Learned Research security intel 12895 | -4/Proximity Caves | Learned Research stockpile data 12895 | -4/Proximity Caves | Learned 8 Factory zone layouts 12895 | -4/Proximity Caves | Learned location of Armory (-4) 12904 | -4/Proximity Caves | Destroyed 7 combat bots 12916 | -4/Proximity Caves | Attracted the attention of an 0b10 checkpoint 12960 | -4/Proximity Caves | Learned Research stockpile data 13085 | -4/Proximity Caves | Build established: Machinist-Scout 13164 | -4/Proximity Caves | Discovered new exit (range 17) 13283 | -4/Proximity Caves | Learned location of 1 exit from Research 13375 | -4/Proximity Caves | Entered Factory 13376 | -4/Factory | Identified exit to Armory 13377 | -4/Factory | Reached level 26 13476 | -4/Factory | Upgraded with Utility slot (x1) 13732 | -4/Factory | Discovered new exit (range 21) 13962 | -4/Factory | Discovered new exit (range 18) 13966 | -4/Factory | Spotted B-86 Titan 14048 | -4/Factory | Spotted B-86 Titan 14060 | -4/Factory | Destroyed B-86 Titan 14072 | -4/Factory | Discovered new exit (range 23) 14106 | -4/Factory | Found Prototype Device 14106 | -4/Factory | Identified EM Disruption Field 14144 | -4/Factory | Discovered new exit (range 13) 14378 | -4/Factory | Build established: Scavenger-Scout 14607 | -4/Factory | Reached level 27 14617 | -4/Factory | Entered Armory 14737 | -4/Armory | Build established: Hacker-Scout 14844 | -4/Armory | Spotted B-86 Titan 14855 | -4/Armory | Allies destroyed B-86 Titan 14867 | -4/Armory | First assault squad dispatched 14889 | -4/Armory | Incoming assault squad redirected 15204 | -4/Armory | Discovered new exit (range 19) 15389 | -4/Armory | Incoming assault squad redirected 15459 | -4/Armory | Discovered new exit (range 24) 15625 | -4/Armory | Discovered new exit (range 3) 15628 | -4/Armory | Entered Lab 15628 | -4/Lab | Discovered new exit (range 9) 15630 | -4/Lab | Reached level 28 15636 | -4/Lab | Hidden lab's door opened automatically 15636 | -4/Lab | Sensor layout match revealed 15637 | -4/Lab | Gained access to the hidden lab's interior 15658 | -4/Lab | Found Alien Artifact 15658 | -4/Lab | Identified Core Reset Matrix 15658 | -4/Lab | Used Core Reset Matrix 15662 | -4/Lab | Sensed 3 artifacts in vicinity 15675 | -4/Lab | Discovered new exit (range 23) 15682 | -4/Lab | Found Prototype Energy Cannon 15682 | -4/Lab | Identified Warp Cannon 15686 | -4/Lab | Found Prototype Energy Cannon 15686 | -4/Lab | Identified Potential Cannon 15690 | -4/Lab | Found Prototype Device 15690 | -4/Lab | Identified AEGIS Remote Shield 15694 | -4/Lab | Found Prototype Hackware 15742 | -4/Lab | Found Integrated Dissipator 15742 | -4/Lab | Installed Integrated Dissipator, increased core heat dissipation (+20) 15755 | -4/Lab | Found Core Regenerator 15789 | -4/Lab | Entered Research 16106 | -3/Research | Identified exit to Quarantine 16106 | -3/Research | Reached level 29 16329 | -3/Research | Destroyed 10 combat bots 16369 | -3/Research | Garrison activated, responded to threat 16445 | -3/Research | Destroyed 11 combat bots 16629 | -3/Research | Spotted B-86 Titan 16631 | -3/Research | Fabricated Quantum Capacitor? 16634 | -3/Research | Destroyed B-86 Titan 16692 | -3/Research | Destroyed 7 combat bots 16793 | -3/Research | Entered Quarantine 16794 | -3/Quarantine | Detected hypermatrix surge 16794 | -3/Quarantine | Sensed 16 artifacts in vicinity 16795 | -3/Quarantine | Reached level 30 16829 | -3/Quarantine | Found Subatomic Replicator 16868 | -3/Quarantine | Met incapacitated Sigix Warrior 16868 | -3/Quarantine | Lockdown squad dispatched 16871 | -3/Quarantine | Acquired the access code to the Sigix quarantine chamber 16873 | -3/Quarantine | Unlocked Sigix quarantine chamber 16890 | -3/Quarantine | Spotted Lightning 16993 | -3/Quarantine | Build established: Machinist-Scout 17059 | -3/Quarantine | System corruption reached 10% 17075 | -3/Quarantine | Garrison activated, responded to threat 17089 | -3/Quarantine | First assault squad dispatched 17111 | -3/Quarantine | Discovered new exit (range 16) 17146 | -3/Quarantine | Scanned by Researcher 17246 | -3/Quarantine | Found Prototype Device 17246 | -3/Quarantine | Identified Exp. Shield Generator 17259 | -3/Quarantine | Cryocooling Duct disabled 17260 | -3/Quarantine | Cryocooling Duct disabled 17267 | -3/Quarantine | Cryocooling Duct disabled 17268 | -3/Quarantine | Cryocooling Duct disabled 17274 | -3/Quarantine | Ambient heat levels rising (+20) 17274 | -3/Quarantine | Non-combat units ordered to evacuate 17275 | -3/Quarantine | Ambient heat levels rising (+20) 17275 | -3/Quarantine | Combat units ordered to evacuate 17282 | -3/Quarantine | Ambient heat levels rising (+20) 17283 | -3/Quarantine | Ambient heat levels rising (+20) 17375 | -3/Quarantine | Quarantine Guard activated 17389 | -3/Quarantine | Spotted Quarantine Guard 17399 | -3/Quarantine | Destroyed Quarantine Guard 17408 | -3/Quarantine | Found Prototype Device 17408 | -3/Quarantine | Identified Exp. Focal Shield 17434 | -3/Quarantine | Spotted Quarantine Guard 17434 | -3/Quarantine | Spotted Quarantine Guard 17438 | -3/Quarantine | Destroyed Quarantine Guard 17443 | -3/Quarantine | Destroyed Quarantine Guard 17501 | -3/Quarantine | Entered Research 17501 | -2/Research | Warlord forces began assault on 0b10 17503 | -2/Research | Reached level 31 17611 | -2/Research | Research machine network offline 17743 | -2/Research | Met up with Warlord 17890 | -2/Research | Discovered new exit (range 19) 17985 | -2/Research | Discovered new exit (range 20) 18022 | -2/Research | Discovered new exit (range 17) 18162 | -2/Research | Borebot progress halted 18258 | -2/Research | Spotted B-90 Cyclops 18317 | -2/Research | Spotted Striker 18318 | -2/Research | Spotted Striker 18325 | -2/Research | Destroyed Striker 18329 | -2/Research | Reached level 32 18329 | -2/Research | Destroyed Striker 18434 | -2/Research | Spotted B-90 Cyclops 18435 | -2/Research | Build established: Scavenger-Scout 18459 | -2/Research | Discovered new exit (range 19) 18502 | -2/Research | Borebot progress halted 18538 | -2/Research | Destroyed 9 combat bots 18640 | -2/Research | Upgraded with Utility slot (x1) 18658 | -2/Research | Discovered new exit (range 13) 18814 | -2/Research | Spotted Executioner 18819 | -2/Research | Spotted Striker 18824 | -2/Research | Destroyed Striker 18827 | -2/Research | Spotted Striker 18834 | -2/Research | Destroyed Executioner 18846 | -2/Research | Destroyed Striker 18881 | -2/Research | Destroyed 10 combat bots 18969 | -2/Research | Spotted Executioner 18980 | -2/Research | Spotted Executioner 18993 | -2/Research | Destroyed Executioner 18996 | -2/Research | Destroyed Executioner 19002 | -2/Research | Warlord destroyed during the assault 19186 | -2/Research | Spotted Striker 19201 | -2/Research | Destroyed Striker 19216 | -2/Research | Found Prototype Processor 19216 | -2/Research | Identified Exp. Targeting Computer 19242 | -2/Research | Entered Testing 19272 | -2/Testing | Incoming investigation squad redirected 19361 | -2/Testing | Reached level 33 19372 | -2/Testing | Found Prototype Energy Gun 19372 | -2/Testing | Identified Tachyon Dispersion Ray 19508 | -2/Testing | Spotted PY-DWX30TSJUV 19544 | -2/Testing | Discovered new exit (range 20) 19694 | -2/Testing | Found Prototype Ballistic Cannon 19694 | -2/Testing | Identified Omega Cannon 19716 | -2/Testing | Found Prototype Energy Cannon 19716 | -2/Testing | Identified Disintegrator 19729 | -2/Testing | Incoming investigation squad redirected 19744 | -2/Testing | Spotted Fortress 19771 | -2/Testing | First assault squad dispatched 19789 | -2/Testing | Discovered new exit (range 10) 19795 | -2/Testing | Entered Section 7 19796 | -2/Section 7 | Sensed 21 artifacts in vicinity 19804 | -2/Section 7 | Spotted S7 Guard 19814 | -2/Section 7 | Destroyed S7 Guard 19841 | -2/Section 7 | Used Subatomic Replicator to replicate Integrated Singularity Reactor 19842 | -2/Section 7 | Found Integrated Singularity Reactor 19842 | -2/Section 7 | Installed Integrated Singularity Reactor, increased core energy generation (+20) 19844 | -2/Section 7 | Installed Integrated Singularity Reactor, increased core energy generation (+20) 19869 | -2/Section 7 | Found Integrated Reactor 19869 | -2/Section 7 | Installed Integrated Reactor, increased core energy generation (+10) 19897 | -2/Section 7 | Found Integrated Dissipator 19897 | -2/Section 7 | Installed Integrated Dissipator, increased core heat dissipation (+20) 19952 | -2/Section 7 | Identified exit to Access 20016 | -2/Section 7 | Spotted S7 Guard 20021 | -2/Section 7 | Found Core Membrane 20021 | -2/Section 7 | Installed Core Membrane, gained immunity to corruption 20033 | -2/Section 7 | Destroyed S7 Guard 20057 | -2/Section 7 | Spotted S7 Guard 20086 | -2/Section 7 | First assault squad dispatched 20106 | -2/Section 7 | Spotted Alpha 7 20136 | -2/Section 7 | Spotted Alpha 7 20141 | -2/Section 7 | Build established: Alien-Scout 20172 | -2/Section 7 | Core integrity fell below 50% 20230 | -2/Section 7 | Emitted hypermatrix ping 20235 | -2/Section 7 | Assembled emerged from beneath the floor 20290 | -2/Section 7 | Destroyed Alpha 7 20296 | -2/Section 7 | Found Prototype Device 20296 | -2/Section 7 | Identified Exp. ECM Suite 20326 | -2/Section 7 | Destroyed 7 combat bots 20338 | -2/Section 7 | Destroyed Alpha 7 20379 | -2/Section 7 | Used Core Regenerator, restored core integrity (+300) 20440 | -2/Section 7 | Spotted B-99 Colossus 20482 | -2/Section 7 | Found LRC Insulator 20482 | -2/Section 7 | Installed LRC Insulator, gained EM resistance (25) 20566 | -2/Section 7 | Spotted Striker 20568 | -2/Section 7 | Spotted Striker 20576 | -2/Section 7 | Scanned by Researcher 20577 | -2/Section 7 | Intercept squad dispatched 20599 | -2/Section 7 | Spotted Tracker 20600 | -2/Section 7 | Spotted Tracker 20609 | -2/Section 7 | Destroyed Tracker 20619 | -2/Section 7 | Destroyed Tracker 20642 | -2/Section 7 | Found Prototype Energy Gun 20642 | -2/Section 7 | Identified Immobilizer 20662 | -2/Section 7 | Spotted Combat Programmer 20664 | -2/Section 7 | Spotted Combat Programmer 20678 | -2/Section 7 | Destroyed Combat Programmer 20690 | -2/Section 7 | Destroyed Combat Programmer 20718 | -2/Section 7 | Found Sigix Quantum Sheargun 20774 | -2/Section 7 | Reached level 34 20774 | -2/Section 7 | Activated Sigix Exoskeleton 20774 | -2/Section 7 | Received instructions from Sigix Warrior 20787 | -2/Section 7 | Spotted Executioner 20790 | -2/Section 7 | Spotted Executioner 20793 | -2/Section 7 | Destroyed Executioner 20793 | -2/Section 7 | Destroyed Executioner 20849 | -2/Section 7 | Destroyed B-99 Colossus 20915 | -2/Section 7 | Intercept squad dispatched 20919 | -2/Section 7 | Destroyed 24 combat bots 20925 | -2/Section 7 | Spotted Tracker 20926 | -2/Section 7 | Spotted Tracker 20933 | -2/Section 7 | Destroyed Tracker 20938 | -2/Section 7 | Destroyed Tracker 20944 | -2/Section 7 | Destroyed Investigator 20945 | -2/Section 7 | Spotted Executioner 20945 | -2/Section 7 | Spotted Striker 20946 | -2/Section 7 | Destroyed Executioner 20950 | -2/Section 7 | Destroyed Striker 20955 | -2/Section 7 | Spotted Executioner 20958 | -2/Section 7 | Destroyed Executioner 20959 | -2/Section 7 | Spotted Combat Programmer 20960 | -2/Section 7 | Spotted Combat Programmer 20962 | -2/Section 7 | Destroyed Combat Programmer 20963 | -2/Section 7 | Destroyed Combat Programmer 20984 | -2/Section 7 | Destroyed 28 combat bots 21060 | -2/Section 7 | Reached level 35 21067 | -2/Section 7 | Spotted Executioner 21068 | -2/Section 7 | Spotted Executioner 21069 | -2/Section 7 | Spotted Executioner 21073 | -2/Section 7 | Spotted Striker 21079 | -2/Section 7 | Allies destroyed Executioner 21086 | -2/Section 7 | Spotted Striker 21091 | -2/Section 7 | Destroyed Executioner 21092 | -2/Section 7 | Spotted Striker 21092 | -2/Section 7 | Spotted Striker 21099 | -2/Section 7 | Allies destroyed Striker 21105 | -2/Section 7 | Destroyed Striker 21129 | -2/Section 7 | Destroyed Striker 21132 | -2/Section 7 | Allies destroyed Striker 21150 | -2/Section 7 | Destroyed 16 combat bots 21160 | -2/Section 7 | Entered Access 21160 | -1/Access | Accompanied by 1 ally (Sigix Warrior) 21234 | -1/Access | Destroyed 8 combat bots 21276 | -1/Access | Reached level 36 21303 | -1/Access | Spotted Executioner 21303 | -1/Access | Spotted Striker 21303 | -1/Access | Destroyed Executioner 21307 | -1/Access | Allies destroyed Striker 21338 | -1/Access | Spotted B-99 Colossus 21342 | -1/Access | Destroyed 23 combat bots 21348 | -1/Access | Destroyed B-99 Colossus 21410 | -1/Access | Spotted Investigator 21411 | -1/Access | Destroyed Investigator 21412 | -1/Access | Spotted Executioner 21412 | -1/Access | Spotted Executioner 21412 | -1/Access | Reached level 37 21418 | -1/Access | Destroyed Executioner 21420 | -1/Access | Destroyed Executioner 21444 | -1/Access | Destroyed 29 combat bots 21486 | -1/Access | Spotted Striker 21486 | -1/Access | Spotted Striker 21491 | -1/Access | Destroyed Striker 21495 | -1/Access | Destroyed Striker 21557 | -1/Access | Intercept squad dispatched 21575 | -1/Access | Spotted Tracker 21575 | -1/Access | Destroyed Tracker 21576 | -1/Access | Spotted Tracker 21576 | -1/Access | Destroyed Tracker 21579 | -1/Access | Spotted Executioner 21579 | -1/Access | Spotted Striker 21579 | -1/Access | Destroyed Executioner 21587 | -1/Access | Destroyed Striker 21588 | -1/Access | Spotted Combat Programmer 21592 | -1/Access | Destroyed Combat Programmer 21594 | -1/Access | Sterilization system engaged 21613 | -1/Access | Destroyed 48 combat bots 21620 | -1/Access | Spotted Executioner 21622 | -1/Access | Spotted Executioner 21623 | -1/Access | Spotted Combat Programmer 21623 | -1/Access | Destroyed Executioner 21623 | -1/Access | Destroyed Executioner 21628 | -1/Access | Destroyed Combat Programmer 21662 | -1/Access | Destroyed 8 combat bots 21688 | -1/Access | Reached level 38 21714 | -1/Access | Destroyed 7 combat bots 21826 | -1/Access | Discovered new exit (range 21) 21894 | -1/Access | Ambient heat levels rising (+10) 22044 | -1/Access | Ambient heat levels rising (+10) 22194 | -1/Access | Ambient heat levels rising (+10) 22271 | -1/Access | Energy Cycler disabled 22284 | -1/Access | Spotted B-99 Colossus 22294 | -1/Access | Destroyed B-99 Colossus 22344 | -1/Access | Ambient heat levels rising (+10) 22494 | -1/Access | Ambient heat levels rising (+10) 22580 | -1/Access | Found Prototype Launcher 22580 | -1/Access | Identified Point Singularity Launcher 22644 | -1/Access | Ambient heat levels rising (+10) 22752 | -1/Access | Spotted B-99 Colossus 22763 | -1/Access | Destroyed B-99 Colossus 22794 | -1/Access | Ambient heat levels rising (+10) 22794 | -1/Access | Spotted B-99 Colossus 22802 | -1/Access | Destroyed B-99 Colossus 22802 | -1/Access | Spotted B-99 Colossus 22808 | -1/Access | Destroyed B-99 Colossus 22826 | -1/Access | Discovered new exit (range 18) 22854 | *** | Destroyed 0B10! Last Messages --------------- 22805_ Quantum Shear penetrates B-99 Colossus. 22805_ B-99 Colossus suffers critical hit. 22805_ Quantum Shear penetrates B-99 Colossus. 22806_ The unstable cave ceiling collapses. 22806_ Slug penetrates Sigix Warrior. 22807_ Quantum Shear penetrates B-99 Colossus. 22808_ B-99 Colossus suffers critical hit. 22808_ Destroyed Unknown Protection. 22808_ B-99 Colossus critical meltdown. 22814_ The unstable cave ceiling collapses. 22818_ Acquired 53 matter. 22823_ Dropped Protomatter-70. 22823_ Dropped Protomatter-72. 22824_ Dropped Protomatter-75. 22826_ EXIT=FOUND 22826_ Protomatter-72 decays. 22831_ Used Protomatter to restore core integrity (+123) 22835_ Used Protomatter to restore part integrity (+83) 22837_ Main Access Shell breached. 22852_ The Access Shell folds into the floor. Map ----- +----------------------------------------------------+ | ???????????????????????????#?????## """ # ?"? | | ???????????????????????##?#?#?#???# " #? ?"? | | ????????????????? #???????##???##?###########? ? | | ??????????????????#????#?##??#???#??#?##???##? ?? | | ?????????????????????????#?#??##?###?#?#?#??? ? ? | | ????????????????????#?#?#??#?#?#?####??#?##?? ? ? | | ??????????????? ????#???#??#???###????#????#? ? ? | | ????? ???????? ???#?#????#??#???#??##???####?? ?? | | ???????????? ? ???????????#????##???????#???#?? ? | | ????#???#?????????#??#??#????########?#?#?##? ?? | | ????????#??????????#############?#??##?# ?#?#??# | | ???? ?? ??????? ?? ? ??? ? ? ????? ? ? | | ?????? ? ?????? ???? ? ? ????? ? ? ?? | | ?????#???????????#### ""#??#?????? ? ??#??# | | ??????? ? ?? ??????# ""##?????##?????????? | | ???##?? ????????? ??# ""##?##???? ? ?????? | | #??????" ? ????? ### T##?##? ?????#???? | | #?????? ??? ?? ? ?#?# ""##?##? ??? ? ?????? | | ?????#? ??? ???? ??# ""###?? ? ???????? | | ?#??????? ?? ?### ""##??#? ? ? ? ?????? | | ???##?? ? ?? ?? ## ###????? ? ? ????? | | ???????" ??? ?? ?## ###?#? ???? ????? | | ?????# ??? ? ?## #?### ? ???????? | | ???#?? ?? ??? ? ? ### #####?##?####?????? | | ?????+???? ? ###X #?#?#####??????#??? | | ??#??#? ? ? ?#?# @" ##?###?##?##???#??? | | ??????#?###?#?####### "" #?#####??####????#? | | ????#???# ####?###### #?#??#?###?###??#?? | | ???#??### ####?###### ############?#????? | | ????####??##?####?### ##?#?###?#######?## | | ??#?#??## ########?##"" """###?#########?##??? | | ??#?#??#? #######??#?"" """############?##?### | | ??####?## #?#?#####?#" ""################??# | | ?###### #??######## ##############?#### | | ???###?## ########?## ################### | | ??#?##### #?######### ########?#####?#### | | ? #####?# ###?####### % #####?####?######?# | | ??################# ################### | | ??#### ### ##### = ! ## | | ??#?## ### ##### ## | | ?##### ### ##### ## | | ?#?#?# !! #####; % #;##?### ## | | ?#?### !! #####; " ##### ## | | #?#### !! ##?### """#### ## | | ??#### ###### # ## | | #?#### ###### # +? | | ?##### ###### # ## | | #####? ###?## # ## | | ???### ##### # #### # ## | | #??### ? ?###### ## ## # ## | +----------------------------------------------------+ Best States ------------- Heat Dissipation 261 Coolant Potential 160 Energy Generation 110 Energy Capacity 1700 Matter Stores 350 Matter Capacity 800 Sight Range 18 Robot Scan Range 2 Terrain Scan Range 24 Terrain Scan Density 310 Power Amplification 30 Heat Shielding 100 Armor Coverage 400 Resistance: KI 30 Resistance: TH 30 Resistance: EX 20 Resistance: EM 25 Thermal Conversion 60 Weapon Cycling 20 Phase Shifting 15 Evasion (%) 81 Targeting Accuracy 8 Core Analysis 10 Energy Filtering 50 Salvage Targeting 3 Offensive Hacking 10 Defensive Hacking 10 Item Schematics ----------------- Quantum Capacitor | -3/Research | Hacked Adv. Reaction Control System | -3/Quarantine | Hacked Cmb. Linear Gravjet | -2/Section 7 | Hacked Robot Schematics ------------------ None Fabricated ------------ Cmb. Gravmag System | x2 | -6/Factory Cmb. Gravmag System | x2 | -6/Factory L-41 Fighter | x3 | -6/Factory Imp. Coolant Injector | x2 | -5/Factory Imp. Force Field | x2 | -5/Factory Quantum Capacitor | x2 | -3/Research Alien Tech Used ----------------- Core Reset Matrix Integrated Dissipator Subatomic Replicator Integrated Singularity Reactor Integrated Reactor Core Membrane Core Regenerator LRC Insulator Sigix Quantum Sheargun Achievements -------------- None Challenges ------------ None RPGLIKE | -11 -10 -10 -9 -9 -9 -8 -8 -8 -7 -7 -7 -7 -6 -6 -6 -6 -6 -6 -5 -5 -5 -5 -4 -4 -4 -4 -3 -3 -2 -2 -2 -1 --------- Run | Scr Mat Min Mat Min Exi Min Mat Sto Fac Low Low Dat Pro Fac Ext Cet Arc Hub Fac Upp Upp War Pro Fac Arm Lab Res Qua Res Tes Sec Acc Levels Raised 37 | . . 1 2 1 . . 3 2 4 . 1 . 2 2 1 1 . . 3 . . 1 . 2 . 1 1 1 2 1 2 3 XP Earned 59584 | 3000 1285 1500 2375 1000 200 1000 3885 2990 5641 601 1643 316 1913 2745 2070 867 146 832 3774 455 554 583 1037 1591 1168 853 2435 1056 3003 772 2992 5302 XP Spent 50740 | 2985 . 245 1300 1600 500 2000 750 1230 4850 . 2200 . 1000 7270 . . . 5500 3980 . 440 600 810 3200 800 420 1100 2560 4000 800 600 . Upgrades 87 | 13 . 3 2 2 1 5 1 2 5 . 5 . 1 9 . . . 2 11 . 2 3 3 1 2 3 1 4 2 1 3 . Power Slot 1 | . . . . . . . . . 1 . . . . . . . . . . . . . . . . . . . . . . . Propulsion Slot 3 | 1 . . . 1 . . . . . . . . . 1 . . . . . . . . . . . . . . . . . . Utility Slot 11 | . . . 1 1 . . . . 3 . . . . 2 . . . 2 . . . . . 1 . . . . 1 . . . Weapon Slot 4 | 1 . . 1 . . . . 1 . . . . . . . . . . 1 . . . . . . . . . . . . . Core Integrity 14 | 1 . 1 . . . . . . . . 2 . . . . . . . 4 . . . . . . 2 . 2 . . 2 . Heat Dissipation 13 | 3 . 1 . . . . . 1 1 . . . . . . . . . 2 . 2 . 3 . . . . . . . . . Energy Generation 1 | . . . . . . . . . . . . . . . . . . . . . . . . . . . . . . . 1 . Matter Storage 1 | . . . . . . . . . . . . . . . . . . . . . . . . . . 1 . . . . . . Mass Support 3 | 1 . . . . . . . . . . . . . . . . . . . . . . . . 1 . 1 . . . . . Inventory Capacity 6 | 1 . . . . 1 . 1 . . . . . 1 . . . . . 1 . . . . . . . . 1 . . . . Sight Range 2 | . . 1 . . . . . . . . . . . . . . . . 1 . . . . . . . . . . . . . Sensor Range 1 | . . . . . . . . . . . . . . . . . . . . . . 1 . . . . . . . . . . Terrain Scan Density 3 | . . . . . . . . . . . . . . 3 . . . . . . . . . . . . . . . . . . Ranged Accuracy 5 | 1 . . . . . 1 . . . . 1 . . 1 . . . . . . . . . . . . . 1 . . . . Hack Attack % 2 | . . . . . . 1 . . . . . . . 1 . . . . . . . . . . . . . . . . . . Hack Defense % 2 | . . . . . . 1 . . . . . . . 1 . . . . . . . . . . . . . . . . . . KI Resistance % 4 | 2 . . . . . 1 . . . . 1 . . . . . . . . . . . . . . . . . . . . . TH Resistance % 4 | 2 . . . . . 1 . . . . 1 . . . . . . . . . . . . . . . . . . . . . EX Resistance % 4 | . . . . . . . . . . . . . . . . . . . 2 . . 2 . . . . . . . . . . TH Damage % 3 | . . . . . . . . . . . . . . . . . . . . . . . . . 1 . . . 1 1 . . Protomatter Created 12871 | . 125 182 78 8 . 132 284 153 281 46 273 . 139 478 334 . 134 197 1316 391 320 557 334 591 384 . 726 584 872 273 1558 2121 Integrity Restored 19515 | . 354 519 109 24 . 217 457 334 804 130 642 . 112 1060 655 178 150 390 2513 512 350 367 501 817 834 . 1480 599 918 600 2287 1602 Core 13997 | . 347 408 83 24 . 110 333 202 729 19 428 . 29 693 421 99 83 283 1706 353 254 252 368 584 645 . 1097 432 734 402 1801 1078 Parts 5518 | . 7 111 26 . . 107 124 132 75 111 214 . 83 367 234 79 67 107 807 159 96 115 133 233 189 . 383 167 184 198 486 524 Protomatter Decayed 10396 | . 5 . . . . 23 46 32 . . 154 . 47 107 471 146 . 154 219 164 225 265 132 303 111 . 217 647 4137 108 637 2046 Game ------ Seed GhostRiotInterpreter Manual? 0 Play Time 05:53:19 Cumulative 559.1 hours Start 2021.07.08 @ 00:00:42 End 2021.07.08 @ 09:15:38 Sessions 5 Manual Loads 0 Difficulty Rogue Special Mode Winter2019/RPGLIKE Game No. 193 Rogue 193 Adventurer 0 Explorer 0 Win Type 3 Total 41 Types 24/2/7/4/2/0/1/0/1 Lore% 87 Gallery% 94 Achievement% 83 Wizard Run 0 Options --------- ASCII 0 Keyboard 0 Movement Mouse Keybinds 0 Fullscreen 2 Font 12/Smallcaps Map View 83x54 Tactical HUD 1 Map Filters NONE Filters NONE Steam X RUN: dc5e1cdd-86c3-49f5-817c-dec58204df2f